{"text_format":"1","workbook":"xlsx","n_sheets":19,"sheets":["表紙","取扱基準","災害時注意事項","広告主様へのお願い","広告主様へのお願い (2)","岐阜県","地図","岐阜市","瑞穂市・本巣市・本巣郡・山県市","羽島市・羽島郡","各務原市","大垣市・海津市・揖斐郡","不破郡・安八郡・養老郡","美濃加茂市・加茂郡","美濃市・関市・郡上市","可児市・可児郡・多治見市","土岐市・瑞浪市・恵那市","中津川市・下呂市","高山市・飛騨市"],"not_rendered":{"charts":0,"images":2,"macros":1,"external_links":0,"defined_names":7,"comments":0,"pivot_tables":0},"unopened":[],"bounds":{"document_bytes":16777216,"sheet_cells":100000,"rows_first":2000,"rows_last":500,"rows_between":2000,"halvings":0,"cell_chars":16384,"cell_head_chars":4096},"cells_cut":0,"cells_raw":0,"read":"whole","date_system":"1900"}

{"sheet":"表紙","index":0,"n_rows":15,"n_cols":1,"rows_kept":15,"cut":false,"hidden":false,"merged":[]}
[]
[]
[]
[]
[]
[]
[]
[]
[]
[]
[]
[]
[]
["2025年後期"]
["新聞折込広告紙数表"]

{"sheet":"取扱基準","index":1,"n_rows":49,"n_cols":1,"rows_kept":49,"cut":false,"hidden":false,"merged":[[0,0,0,1],[4,0,4,1],[6,0,6,1]]}
[]
["新聞折込広告取扱基準"]
[]
[]
["　当社は日本新聞協会の「折込広告の取扱基準」および、新聞社の「広告掲載基準」を参考として、折込広告取扱基準を設けております。"]
[]
["　つぎのような折込チラシはお引き受けできかねます。"]
[]
[]
["（1） 広告の内容がはっきりしないもの。および、広告主の所在地、事業所名、ＨＰアドレス等のいずれの記載もなく、広告責任者が明確でないもの。"]
[]
["（2） 虚偽または誇大表現により、誤認されるおそれのあるもの。「日本一」「業界一」等の最高・最大級の表現、「絶対に」「確実に」等、商品の性能、"]
[]
["　　　効能、効果を保証する断定的表現を用いたもの。"]
[]
["（3） 景表法（不当景品付販売・不当表示の禁止）、不正競争防止法（コピー商品等の販売宣伝の禁止）などのほか、薬事法、医療法など法律や条例に"]
[]
["　　　触れると思われるもの。（医薬品等を否定する内容や迷信に類する非科学的な内容のもの等）"]
["　　"]
["（4） 広告主の主観的意見、意図、表現がみられ、他者を誹謗中傷し、結果的に他者の名誉、信用を傷つけるおそれがある表現のもの。（誹謗中傷広告等）"]
["     "]
["（5）「新聞業における公正競争規約」に触れる抽選券・金券などを刷り込んだもの、クーポン付き広告に関する規則、運営細則に違反するもの。"]
["　　　"]
["（6） 政治問題や係争中（もしくは係争が予想される）問題について、一方的な主張を述べたものや、立候補が予定されている人物の名称を記載するなど、"]
[]
["　　　選挙の事前運動と推量されるもの。"]
["　　　"]
["（7） 煽情的な言葉や、写真、イラスト等を用いた表現で、暴力・犯罪を肯定・礼讃するなど、公序良俗に反する表現のもの。"]
["      "]
["（8） 不動産広告で、広告主の名称、所在地、販売物件の所在地、地目、建築の可否、建ぺい率、交通アクセス、価格、管理費、維持費、販売条件、"]
[]
["      宅建業法による免許証番号などが明確に記載されてないもの。"]
["      "]
["（9） 貸金業広告で、貸金業規制法で定められている必要事項が表示されていないもの。 （商号、名称、氏名、登録番号、住所、利率等）"]
["     "]
["（10）発行本社の新聞と混同、誤認されると思われるものや、他紙の社名、題字、記事、催事などが掲載、引用されているもの。"]
[]
["      その他、著作権・肖像権・商標権等を侵害するおそれのあるもの。"]
["　　　"]
["（11）新聞社がそれぞれ定めた広告掲載基準に照らして、新聞折込が不適当と認められるもの。"]
["     "]
["（12）新聞販売店の営業活動に支障をきたし、不利益になると判断されるもの。"]
[]
[]
[]
["■ 上記に限らず、判断がむずかしいものは、新聞発行本社、関係諸機関の指導・協議によって決めさせていただきます。"]
[]
["   なお、ご不明な点がございましたら当社へご相談下さい。"]
["   "]

{"sheet":"災害時注意事項","index":2,"n_rows":49,"n_cols":2,"rows_kept":49,"cut":false,"hidden":false,"merged":[[1,0,1,4],[23,1,23,3],[25,1,25,3]]}
[]
["大規模災害発生時における新聞折込広告の取り扱いについて"]
[]
[]
[null,"大規模な災害（大地震、津波、洪水、豪雪、大火災、大規模停電、火山噴火、原子力発電所の事故、新型感染症の大流行、他国からの攻撃など）に見舞われた"]
[]
[null,"場合、中日新聞折込広告協同組合加盟の折込会社と中日新聞販売店は被災の状況を的確に判断し、折込広告をご愛読者へお届けするために全力を傾注します。"]
[]
[null,"しかしながらライフラインや通信網、輸送ルートなどが遮断され、被災地の新聞販売店や従業員に甚大な被害が及んだ場合は、クライアント様のご要望にお応"]
[]
[null,"えできない場合もあります。"]
[]
[null,"この様に事前の予測と回避が不可能な事態が発生し、折込会社と新聞販売店の努力にも関わらず指定日に新聞折込が出来なかった場合、折込会社と新聞販売店"]
[]
[null,"は一切の責任を負う事ができません。あらかじめご容赦いただきますようお願い申しあげます。"]
["   "]
[]
[]
[]
[]
[]
[]
[]
[null,"東海地震に関する「警戒宣言」発令時の折込広告の取り扱いについて"]
[]
[null,"『大地震への警戒宣言や注意情報が発令された場合、新聞折込広告は中止になります』"]
[]
[]
[null,"　愛知県、三重県の大部分の市町村と岐阜県中津川市は大規模地震対策措置法により、地震防災対策強化地域に指定されています。指定された地域で大規"]
[]
[null,"　模な地震の発生が予知されますと、内閣総理大臣から警戒宣言が発令されることになっています。また東海地震の前兆現象が高まると、気象庁から注意"]
[]
[null,"　情報が発表されます。"]
[]
[null,"　警戒宣言発令後は交通規制が始まり、指定地域内へ車両の進入が禁止されるほか、一般の道路も時速20㎞に速度制限されるため大渋滞の発生が予想され"]
[]
[null,"　ます。"]
[]
[null,"　このため東海地震の注意情報や警戒宣言の発令と同時に、お客様からお預かりした新聞折込広告の配送作業は「中止」させていただきます。配送中の車"]
[]
[null,"　両に対しては折込広告をお預かりした状態ですみやかに帰社するように指示しますが、交通事情と警察官の指示によって止むを得ず路上に駐車し避難し"]
[]
[null,"　なければならない事も想定されます。"]
[]
[null,"　すでに配送が完了した新聞折込広告も、新聞販売店での組み込み作業が「中止」になり新聞折込ができなくなります。幸い注意情報や警戒宣言が解除"]
[]
[null,"　された場合も、混乱が解消するまでしばらくの間は新聞折込ができない場合もあります。"]
[]
[null,"　何卒ご理解とご了承をいただけますようお願いいたします。"]

{"sheet":"広告主様へのお願い","index":3,"n_rows":52,"n_cols":2,"rows_kept":52,"cut":false,"hidden":false,"merged":[[1,0,1,5],[17,1,17,2]]}
[]
["広告主様へのお願い"]
[]
["1. 配布明細の連絡について"]
[]
["　　折込先配布明細のご指示は、ＦＡＸまたはメールで必ずチラシの搬入期日以前にご連絡下さい。"]
[]
["　　折込広告は、発送配布の都合上、50枚を単位として扱います。"]
[]
["　　配布指定部数と実際の部数が異なるときは、当社において一部配布数の変更、隣接地区への配布など、調整を行わせて頂く場合があります。"]
[]
["　　配布明細連絡をいただく際、正確なサイズをご指示願います。"]
[]
["　　※ 特に普通紙と厚紙の紙区別は注意して下さい。（四六版　110㎏より厚紙扱いとなります）"]
[]
["　　※ 新聞に収まる形状が原則ですが、例えばＢ４二ツ折の場合は二ツ折（Ｂ３）単価の適用となります。"]
[]
[null,"合売記号の見方"]
[]
[]
[null,"　　C…中日　　　N…日経　　　A…朝日　　　M…毎日　　　Y…読売　　 G…岐阜　　　I…伊勢　　　S…産経"]
[]
[]
[null,"合売店については、取扱い部数が多い媒体の欄に記載となります。"]
[]
[null,"☆…月曜日折込不可"]
[]
[null,"△…折込日が休刊日翌日の場合、先送り地区"]
[]
[]
["2. 折込広告の搬入時間について"]
[]
["　　※ 折込日2日前ＡＭ10時（日・祝日除く）までに搬入して下さい。但し下記地区は3日前ＡＭ10時（日・祝日除く）までに搬入して下さい。"]
[]
["　　　 田原市、新城市（設楽地区）、北設楽郡、三重県南勢地区"]
[]
["　　　（上記以外の場合は随時お問い合わせ下さい。）"]
[]
["　　※ 搬入時間を外れた持込みおよび、配布明細の事前連絡のない場合、折込指定日の責は負いかねます。"]
[]
["　　※ 折込広告の各新聞店への発送後の中止、変更等は出来かねます。"]
[]
["　　※ 年末年始、ゴールデンウィーク、お盆期間等については変則となります。"]
[]
[]
["3. 行政区表示について"]
[]
["　　紙数表は実際の行政区と異なる地区もあります。資料は参考として掲載してありますので行政区へ指定・限定とした場合、"]
[]
["　　一部区域が入らない時と指定以外の地区に入ったりする場合が生じますので事前に当社までご相談下さい。"]
[]
["    "]

{"sheet":"広告主様へのお願い (2)","index":4,"n_rows":52,"n_cols":2,"rows_kept":52,"cut":false,"hidden":false,"merged":[[9,1,9,3],[10,1,10,3],[15,1,15,3],[16,1,16,3]]}
[]
["4. 月曜日および新聞休刊日の翌日は、一部地域において、折込できないところがあります。（下記一覧表参照）"]
[]
["　　また選挙の開票報道等の都合で、新聞が遅れるときは、折込できません。"]
[]
["　　※下記の地区または販売店は地域事情などにより折込の条件が異なります。ご注意ください。"]
[]
[null,"①月曜日折込不可"]
[]
[null,"　該当販売店"]
[null,"　岐阜県郡上市：正ヶ洞　　　岐阜県高山市：国府"]
[]
[]
[null,"②休刊日翌日折込が先送りとなる地区"]
[]
[null,"　該当地区"]
[null,"　愛知県新城市（設楽地区）　　　北設楽郡"]
[]
[]
["5. パンフレット・小冊子に類するもの等は、その形状・内容により判断させて頂きます。"]
[]
[]
["6. 二つ以上の事業所が連合（連名）して行う広告は、連合広告となり、一部地区で料金が異なったり、取り扱い不可となる場合があります。"]
[]
["　　必ず事前にご相談下さい。内容により判断させて頂きます。"]
[]
[]
["　　〈適用外〉"]
[]
["　　・実在する商店街、夏祭り等実行委員会、テナント、ショッピングモール等。"]
[]
["　　・パチンコ・映画館・サウナなど、同じ敷地にある複合施設。"]
[]
["　　・オーナーが同一の企業グループ広告。"]
[]
["　　・複数企業が業務提携や同一テーマに基づき共同制作したコラボレーション広告。"]
[]
["　　（但し、連絡先などの記載は広告責任者1社に限る。）　"]
[]
["　　・雑誌・情報誌が、自誌ＰＲを目的に実際の誌面を使用再構成した広告。"]
[]
["　　・落成広告（企業名を掲載する企業が協賛企業であり、営利目的でないこと）"]
[]
["   "]
["7. 折込広告の在庫管理に関して"]
[]
["　　次回以降の折込広告も同時に持ち込まれるお客様に対しましては、弊社配送センターにて"]
[]
["　　預かりを承りますが、保管期間は原則１ヶ月とさせて頂きます。"]
[]
["     "]
["8. 全国取り次ぎを行っております。ご用の際はご相談下さい。"]

{"sheet":"岐阜県","index":5,"n_rows":35,"n_cols":21,"rows_kept":35,"cut":false,"hidden":false,"merged":[[3,16,3,18],[3,19,3,20],[33,19,33,20],[3,1,3,3],[3,4,3,6],[3,7,3,9],[3,10,3,12],[3,13,3,15],[4,19,32,20],[0,19,1,20],[1,5,1,6],[1,7,1,13],[1,15,1,17],[0,1,1,4],[0,5,0,6],[0,7,0,13],[0,15,0,17]]}
["折込日",null,null,null,null,"広告主",null,null,null,null,null,null,null,null,"サイズ",null,null,null,"取次店"]
[null,null,null,null,null,"チラシ銘柄",null,null,null,null,null,null,null,null,"部数",{"$f":"S34","v":0}]
["岐阜県",null,null,null,null,null,null,null,null,null,null,null,null,null,null,null,null,null,null,null,"2025年後期（11月1日以降）"]
["地区","中日新聞",null,null,"朝日新聞",null,null,"毎日新聞",null,null,"読売新聞",null,null,"岐阜新聞",null,null,"合　　計",null,null,"備考"]
["岐阜市",{"$f":"VALUE(TRIM(LEFT(岐阜市!E48,2)))","v":31},{"$f":"岐阜市!F48","v":44100},{"$f":"岐阜市!G48","v":0},{"$f":"VALUE(TRIM(LEFT(岐阜市!I48,2)))","v":0},{"$f":"岐阜市!J48","v":0},{"$f":"岐阜市!K48","v":0},{"$f":"VALUE(TRIM(LEFT(岐阜市!M48,2)))","v":0},{"$f":"岐阜市!N48","v":0},{"$f":"岐阜市!O48","v":0},{"$f":"VALUE(TRIM(LEFT(岐阜市!Q48,2)))","v":8},{"$f":"岐阜市!R48","v":4450},{"$f":"岐阜市!S48","v":0},{"$f":"VALUE(TRIM(LEFT(岐阜市!U48,2)))","v":30},{"$f":"岐阜市!V48","v":59700},{"$f":"岐阜市!W48","v":0},{"$f":"SUM(B5,E5,H5,K5,N5)","v":69},{"$f":"SUM(C5,F5,I5,L5,O5)","v":108250},{"$f":"IFERROR((SUM(D5,G5,J5,M5,P5)),\" \")","v":0}]
["瑞穂市",{"$f":"VALUE(TRIM(LEFT(瑞穂市・本巣市・本巣郡・山県市!E14,2)))","v":3},{"$f":"瑞穂市・本巣市・本巣郡・山県市!F14","v":5750},{"$f":"瑞穂市・本巣市・本巣郡・山県市!G14","v":0},{"$f":"VALUE(TRIM(LEFT(瑞穂市・本巣市・本巣郡・山県市!I14,2)))","v":0},{"$f":"瑞穂市・本巣市・本巣郡・山県市!J14","v":0},{"$f":"瑞穂市・本巣市・本巣郡・山県市!K14","v":0},{"$f":"VALUE(TRIM(LEFT(瑞穂市・本巣市・本巣郡・山県市!M14,2)))","v":0},{"$f":"瑞穂市・本巣市・本巣郡・山県市!N14","v":0},{"$f":"瑞穂市・本巣市・本巣郡・山県市!O14","v":0},{"$f":"VALUE(TRIM(LEFT(瑞穂市・本巣市・本巣郡・山県市!Q14,2)))","v":1},{"$f":"瑞穂市・本巣市・本巣郡・山県市!R14","v":400},{"$f":"瑞穂市・本巣市・本巣郡・山県市!S14","v":0},{"$f":"VALUE(TRIM(LEFT(瑞穂市・本巣市・本巣郡・山県市!U14,2)))","v":2},{"$f":"瑞穂市・本巣市・本巣郡・山県市!V14","v":4950},{"$f":"瑞穂市・本巣市・本巣郡・山県市!W14","v":0},6,11100,0]
["本巣市",{"$f":"VALUE(TRIM(LEFT(瑞穂市・本巣市・本巣郡・山県市!E27,2)))","v":1},{"$f":"瑞穂市・本巣市・本巣郡・山県市!F27","v":1950},{"$f":"瑞穂市・本巣市・本巣郡・山県市!G27","v":0},{"$f":"VALUE(TRIM(LEFT(瑞穂市・本巣市・本巣郡・山県市!I27,2)))","v":0},{"$f":"瑞穂市・本巣市・本巣郡・山県市!J27","v":0},{"$f":"瑞穂市・本巣市・本巣郡・山県市!K27","v":0},{"$f":"VALUE(TRIM(LEFT(瑞穂市・本巣市・本巣郡・山県市!M27,2)))","v":0},{"$f":"瑞穂市・本巣市・本巣郡・山県市!N27","v":0},{"$f":"瑞穂市・本巣市・本巣郡・山県市!O27","v":0},{"$f":"VALUE(TRIM(LEFT(瑞穂市・本巣市・本巣郡・山県市!Q27,2)))","v":0},{"$f":"瑞穂市・本巣市・本巣郡・山県市!R27","v":0},{"$f":"瑞穂市・本巣市・本巣郡・山県市!S27","v":0},{"$f":"VALUE(TRIM(LEFT(瑞穂市・本巣市・本巣郡・山県市!U27,2)))","v":4},{"$f":"瑞穂市・本巣市・本巣郡・山県市!V27","v":5650},{"$f":"瑞穂市・本巣市・本巣郡・山県市!W27","v":0},5,7600,0]
["本巣郡",{"$f":"VALUE(TRIM(LEFT(瑞穂市・本巣市・本巣郡・山県市!E37,2)))","v":2},{"$f":"瑞穂市・本巣市・本巣郡・山県市!F37","v":2750},{"$f":"瑞穂市・本巣市・本巣郡・山県市!G37","v":0},{"$f":"VALUE(TRIM(LEFT(瑞穂市・本巣市・本巣郡・山県市!I37,2)))","v":0},{"$f":"瑞穂市・本巣市・本巣郡・山県市!J37","v":0},{"$f":"瑞穂市・本巣市・本巣郡・山県市!K37","v":0},{"$f":"VALUE(TRIM(LEFT(瑞穂市・本巣市・本巣郡・山県市!M37,2)))","v":0},{"$f":"瑞穂市・本巣市・本巣郡・山県市!N37","v":0},{"$f":"瑞穂市・本巣市・本巣郡・山県市!O37","v":0},{"$f":"VALUE(TRIM(LEFT(瑞穂市・本巣市・本巣郡・山県市!Q37,2)))","v":1},{"$f":"瑞穂市・本巣市・本巣郡・山県市!R37","v":400},{"$f":"瑞穂市・本巣市・本巣郡・山県市!S37","v":0},{"$f":"VALUE(TRIM(LEFT(瑞穂市・本巣市・本巣郡・山県市!U37,2)))","v":0},{"$f":"瑞穂市・本巣市・本巣郡・山県市!V37","v":0},{"$f":"瑞穂市・本巣市・本巣郡・山県市!W37","v":0},3,3150,0]
["山県市",{"$f":"VALUE(TRIM(LEFT(瑞穂市・本巣市・本巣郡・山県市!E48,2)))","v":2},{"$f":"瑞穂市・本巣市・本巣郡・山県市!F48","v":3850},{"$f":"瑞穂市・本巣市・本巣郡・山県市!G48","v":0},{"$f":"VALUE(TRIM(LEFT(瑞穂市・本巣市・本巣郡・山県市!I48,2)))","v":0},{"$f":"瑞穂市・本巣市・本巣郡・山県市!J48","v":0},{"$f":"瑞穂市・本巣市・本巣郡・山県市!K48","v":0},{"$f":"VALUE(TRIM(LEFT(瑞穂市・本巣市・本巣郡・山県市!M48,2)))","v":0},{"$f":"瑞穂市・本巣市・本巣郡・山県市!N48","v":0},{"$f":"瑞穂市・本巣市・本巣郡・山県市!O48","v":0},{"$f":"VALUE(TRIM(LEFT(瑞穂市・本巣市・本巣郡・山県市!Q48,2)))","v":1},{"$f":"瑞穂市・本巣市・本巣郡・山県市!R48","v":100},{"$f":"瑞穂市・本巣市・本巣郡・山県市!S48","v":0},{"$f":"VALUE(TRIM(LEFT(瑞穂市・本巣市・本巣郡・山県市!U48,2)))","v":2},{"$f":"瑞穂市・本巣市・本巣郡・山県市!V48","v":3750},{"$f":"瑞穂市・本巣市・本巣郡・山県市!W48","v":0},5,7700,0]
["羽島市",{"$f":"VALUE(TRIM(LEFT(羽島市・羽島郡!E26,2)))","v":6},{"$f":"羽島市・羽島郡!F26","v":8650},{"$f":"羽島市・羽島郡!G26","v":0},{"$f":"VALUE(TRIM(LEFT(羽島市・羽島郡!I26,2)))","v":0},{"$f":"羽島市・羽島郡!J26","v":0},{"$f":"羽島市・羽島郡!K26","v":0},{"$f":"VALUE(TRIM(LEFT(羽島市・羽島郡!M26,2)))","v":0},{"$f":"羽島市・羽島郡!N26","v":0},{"$f":"羽島市・羽島郡!O26","v":0},{"$f":"VALUE(TRIM(LEFT(羽島市・羽島郡!Q26,2)))","v":1},{"$f":"羽島市・羽島郡!R26","v":550},{"$f":"羽島市・羽島郡!S26","v":0},{"$f":"VALUE(TRIM(LEFT(羽島市・羽島郡!U26,2)))","v":3},{"$f":"羽島市・羽島郡!V26","v":4650},{"$f":"羽島市・羽島郡!W26","v":0},10,13850,0]
["羽島郡",{"$f":"VALUE(TRIM(LEFT(羽島市・羽島郡!E48,2)))","v":3},{"$f":"羽島市・羽島郡!F48","v":4800},{"$f":"羽島市・羽島郡!G48","v":0},{"$f":"VALUE(TRIM(LEFT(羽島市・羽島郡!I48,2)))","v":0},{"$f":"羽島市・羽島郡!J48","v":0},{"$f":"羽島市・羽島郡!K48","v":0},{"$f":"VALUE(TRIM(LEFT(羽島市・羽島郡!M48,2)))","v":0},{"$f":"羽島市・羽島郡!N48","v":0},{"$f":"羽島市・羽島郡!O48","v":0},{"$f":"VALUE(TRIM(LEFT(羽島市・羽島郡!Q48,2)))","v":1},{"$f":"羽島市・羽島郡!R48","v":850},{"$f":"羽島市・羽島郡!S48","v":0},{"$f":"VALUE(TRIM(LEFT(羽島市・羽島郡!U48,2)))","v":1},{"$f":"羽島市・羽島郡!V48","v":1600},{"$f":"羽島市・羽島郡!W48","v":0},5,7250,0]
["各務原市",{"$f":"VALUE(TRIM(LEFT(各務原市!E48,2)))","v":11},{"$f":"各務原市!F48","v":18850},{"$f":"各務原市!G48","v":0},{"$f":"VALUE(TRIM(LEFT(各務原市!I48,2)))","v":0},{"$f":"各務原市!J48","v":0},{"$f":"各務原市!K48","v":0},{"$f":"VALUE(TRIM(LEFT(各務原市!M48,2)))","v":2},{"$f":"各務原市!N48","v":600},{"$f":"各務原市!O48","v":0},{"$f":"VALUE(TRIM(LEFT(各務原市!Q48,2)))","v":3},{"$f":"各務原市!R48","v":1000},{"$f":"各務原市!S48","v":0},{"$f":"VALUE(TRIM(LEFT(各務原市!U48,2)))","v":6},{"$f":"各務原市!V48","v":11400},{"$f":"各務原市!W48","v":0},22,31850,0]
["大垣市",{"$f":"VALUE(TRIM(LEFT(大垣市・海津市・揖斐郡!E22,2)))","v":10},{"$f":"大垣市・海津市・揖斐郡!F22","v":24150},{"$f":"大垣市・海津市・揖斐郡!G22","v":0},{"$f":"VALUE(TRIM(LEFT(大垣市・海津市・揖斐郡!I22,2)))","v":1},{"$f":"大垣市・海津市・揖斐郡!J22","v":1000},{"$f":"大垣市・海津市・揖斐郡!K22","v":0},{"$f":"VALUE(TRIM(LEFT(大垣市・海津市・揖斐郡!M22,2)))","v":0},{"$f":"大垣市・海津市・揖斐郡!N22","v":0},{"$f":"大垣市・海津市・揖斐郡!O22","v":0},{"$f":"VALUE(TRIM(LEFT(大垣市・海津市・揖斐郡!Q22,2)))","v":3},{"$f":"大垣市・海津市・揖斐郡!R22","v":1550},{"$f":"大垣市・海津市・揖斐郡!S22","v":0},{"$f":"VALUE(TRIM(LEFT(大垣市・海津市・揖斐郡!U22,2)))","v":5},{"$f":"大垣市・海津市・揖斐郡!V22","v":9400},{"$f":"大垣市・海津市・揖斐郡!W22","v":0},19,36100,0]
["海津市",{"$f":"VALUE(TRIM(LEFT(大垣市・海津市・揖斐郡!E36,2)))","v":4},{"$f":"大垣市・海津市・揖斐郡!F36","v":6200},{"$f":"大垣市・海津市・揖斐郡!G36","v":0},{"$f":"VALUE(TRIM(LEFT(大垣市・海津市・揖斐郡!I36,2)))","v":0},{"$f":"大垣市・海津市・揖斐郡!J36","v":0},{"$f":"大垣市・海津市・揖斐郡!K36","v":0},{"$f":"VALUE(TRIM(LEFT(大垣市・海津市・揖斐郡!M36,2)))","v":0},{"$f":"大垣市・海津市・揖斐郡!N36","v":0},{"$f":"大垣市・海津市・揖斐郡!O36","v":0},{"$f":"VALUE(TRIM(LEFT(大垣市・海津市・揖斐郡!Q36,2)))","v":1},{"$f":"大垣市・海津市・揖斐郡!R36","v":350},{"$f":"大垣市・海津市・揖斐郡!S36","v":0},{"$f":"VALUE(TRIM(LEFT(大垣市・海津市・揖斐郡!U36,2)))","v":1},{"$f":"大垣市・海津市・揖斐郡!V36","v":650},{"$f":"大垣市・海津市・揖斐郡!W36","v":0},6,7200,0]
["揖斐郡",{"$f":"VALUE(TRIM(LEFT(大垣市・海津市・揖斐郡!E48,2)))","v":3},{"$f":"大垣市・海津市・揖斐郡!F48","v":9350},{"$f":"大垣市・海津市・揖斐郡!G48","v":0},{"$f":"VALUE(TRIM(LEFT(大垣市・海津市・揖斐郡!I48,2)))","v":0},{"$f":"大垣市・海津市・揖斐郡!J48","v":0},{"$f":"大垣市・海津市・揖斐郡!K48","v":0},{"$f":"VALUE(TRIM(LEFT(大垣市・海津市・揖斐郡!M48,2)))","v":0},{"$f":"大垣市・海津市・揖斐郡!N48","v":0},{"$f":"大垣市・海津市・揖斐郡!O48","v":0},{"$f":"VALUE(TRIM(LEFT(大垣市・海津市・揖斐郡!Q48,2)))","v":2},{"$f":"大垣市・海津市・揖斐郡!R48","v":400},{"$f":"大垣市・海津市・揖斐郡!S48","v":0},{"$f":"VALUE(TRIM(LEFT(大垣市・海津市・揖斐郡!U48,2)))","v":3},{"$f":"大垣市・海津市・揖斐郡!V48","v":4300},{"$f":"大垣市・海津市・揖斐郡!W48","v":0},8,14050,0]
["不破郡",{"$f":"VALUE(TRIM(LEFT(不破郡・安八郡・養老郡!E14,2)))","v":3},{"$f":"不破郡・安八郡・養老郡!F14","v":5550},{"$f":"不破郡・安八郡・養老郡!G14","v":0},{"$f":"VALUE(TRIM(LEFT(不破郡・安八郡・養老郡!I14,2)))","v":0},{"$f":"不破郡・安八郡・養老郡!J14","v":0},{"$f":"不破郡・安八郡・養老郡!K14","v":0},{"$f":"VALUE(TRIM(LEFT(不破郡・安八郡・養老郡!M14,2)))","v":0},{"$f":"不破郡・安八郡・養老郡!N14","v":0},{"$f":"不破郡・安八郡・養老郡!O14","v":0},{"$f":"VALUE(TRIM(LEFT(不破郡・安八郡・養老郡!Q14,2)))","v":1},{"$f":"不破郡・安八郡・養老郡!R14","v":250},{"$f":"不破郡・安八郡・養老郡!S14","v":0},{"$f":"VALUE(TRIM(LEFT(不破郡・安八郡・養老郡!U14,2)))","v":1},{"$f":"不破郡・安八郡・養老郡!V14","v":2650},{"$f":"不破郡・安八郡・養老郡!W14","v":0},5,8450,0]
["安八郡",{"$f":"VALUE(TRIM(LEFT(不破郡・安八郡・養老郡!E31,2)))","v":3},{"$f":"不破郡・安八郡・養老郡!F31","v":8000},{"$f":"不破郡・安八郡・養老郡!G31","v":0},{"$f":"VALUE(TRIM(LEFT(不破郡・安八郡・養老郡!I31,2)))","v":0},{"$f":"不破郡・安八郡・養老郡!J31","v":0},{"$f":"不破郡・安八郡・養老郡!K31","v":0},{"$f":"VALUE(TRIM(LEFT(不破郡・安八郡・養老郡!M31,2)))","v":0},{"$f":"不破郡・安八郡・養老郡!N31","v":0},{"$f":"不破郡・安八郡・養老郡!O31","v":0},{"$f":"VALUE(TRIM(LEFT(不破郡・安八郡・養老郡!Q31,2)))","v":2},{"$f":"不破郡・安八郡・養老郡!R31","v":200},{"$f":"不破郡・安八郡・養老郡!S31","v":0},{"$f":"VALUE(TRIM(LEFT(不破郡・安八郡・養老郡!U31,2)))","v":0},{"$f":"不破郡・安八郡・養老郡!V31","v":0},{"$f":"不破郡・安八郡・養老郡!W31","v":0},5,8200,0]
["養老郡",{"$f":"VALUE(TRIM(LEFT(不破郡・安八郡・養老郡!E48,2)))","v":2},{"$f":"不破郡・安八郡・養老郡!F48","v":3950},{"$f":"不破郡・安八郡・養老郡!G48","v":0},{"$f":"VALUE(TRIM(LEFT(不破郡・安八郡・養老郡!I48,2)))","v":0},{"$f":"不破郡・安八郡・養老郡!J48","v":0},{"$f":"不破郡・安八郡・養老郡!K48","v":0},{"$f":"VALUE(TRIM(LEFT(不破郡・安八郡・養老郡!M48,2)))","v":0},{"$f":"不破郡・安八郡・養老郡!N48","v":0},{"$f":"不破郡・安八郡・養老郡!O48","v":0},{"$f":"VALUE(TRIM(LEFT(不破郡・安八郡・養老郡!Q48,2)))","v":0},{"$f":"不破郡・安八郡・養老郡!R48","v":0},{"$f":"不破郡・安八郡・養老郡!S48","v":0},{"$f":"VALUE(TRIM(LEFT(不破郡・安八郡・養老郡!U48,2)))","v":2},{"$f":"不破郡・安八郡・養老郡!V48","v":2550},{"$f":"不破郡・安八郡・養老郡!W48","v":0},4,6500,0]
["美濃加茂市",{"$f":"VALUE(TRIM(LEFT(美濃加茂市・加茂郡!E21,2)))","v":3},{"$f":"美濃加茂市・加茂郡!F21","v":7600},{"$f":"美濃加茂市・加茂郡!G21","v":0},{"$f":"VALUE(TRIM(LEFT(美濃加茂市・加茂郡!I21,2)))","v":0},{"$f":"美濃加茂市・加茂郡!J21","v":0},{"$f":"美濃加茂市・加茂郡!K21","v":0},{"$f":"VALUE(TRIM(LEFT(美濃加茂市・加茂郡!M21,2)))","v":0},{"$f":"美濃加茂市・加茂郡!N21","v":0},{"$f":"美濃加茂市・加茂郡!O21","v":0},{"$f":"VALUE(TRIM(LEFT(美濃加茂市・加茂郡!Q21,2)))","v":1},{"$f":"美濃加茂市・加茂郡!R21","v":800},{"$f":"美濃加茂市・加茂郡!S21","v":0},{"$f":"VALUE(TRIM(LEFT(美濃加茂市・加茂郡!U21,2)))","v":1},{"$f":"美濃加茂市・加茂郡!V21","v":1650},{"$f":"美濃加茂市・加茂郡!W21","v":0},5,10050,0]
["加茂郡",{"$f":"VALUE(TRIM(LEFT(美濃加茂市・加茂郡!E48,2)))","v":12},{"$f":"美濃加茂市・加茂郡!F48","v":11500},{"$f":"美濃加茂市・加茂郡!G48","v":0},{"$f":"VALUE(TRIM(LEFT(美濃加茂市・加茂郡!I48,2)))","v":0},{"$f":"美濃加茂市・加茂郡!J48","v":0},{"$f":"美濃加茂市・加茂郡!K48","v":0},{"$f":"VALUE(TRIM(LEFT(美濃加茂市・加茂郡!M48,2)))","v":0},{"$f":"美濃加茂市・加茂郡!N48","v":0},{"$f":"美濃加茂市・加茂郡!O48","v":0},{"$f":"VALUE(TRIM(LEFT(美濃加茂市・加茂郡!Q48,2)))","v":1},{"$f":"美濃加茂市・加茂郡!R48","v":100},{"$f":"美濃加茂市・加茂郡!S48","v":0},{"$f":"VALUE(TRIM(LEFT(美濃加茂市・加茂郡!U48,2)))","v":1},{"$f":"美濃加茂市・加茂郡!V48","v":550},{"$f":"美濃加茂市・加茂郡!W48","v":0},14,12150,0]
["美濃市",{"$f":"VALUE(TRIM(LEFT(美濃市・関市・郡上市!E14,2)))","v":2},{"$f":"美濃市・関市・郡上市!F14","v":3550},{"$f":"美濃市・関市・郡上市!G14","v":0},{"$f":"VALUE(TRIM(LEFT(美濃市・関市・郡上市!I14,2)))","v":0},{"$f":"美濃市・関市・郡上市!J14","v":0},{"$f":"美濃市・関市・郡上市!K14","v":0},{"$f":"VALUE(TRIM(LEFT(美濃市・関市・郡上市!M14,2)))","v":0},{"$f":"美濃市・関市・郡上市!N14","v":0},{"$f":"美濃市・関市・郡上市!O14","v":0},{"$f":"VALUE(TRIM(LEFT(美濃市・関市・郡上市!Q14,2)))","v":0},{"$f":"美濃市・関市・郡上市!R14","v":0},{"$f":"美濃市・関市・郡上市!S14","v":0},{"$f":"VALUE(TRIM(LEFT(美濃市・関市・郡上市!U14,2)))","v":1},{"$f":"美濃市・関市・郡上市!V14","v":700},{"$f":"美濃市・関市・郡上市!W14","v":0},3,4250,0]
["関市",{"$f":"VALUE(TRIM(LEFT(美濃市・関市・郡上市!E31,2)))","v":7},{"$f":"美濃市・関市・郡上市!F31","v":10300},{"$f":"美濃市・関市・郡上市!G31","v":0},{"$f":"VALUE(TRIM(LEFT(美濃市・関市・郡上市!I31,2)))","v":0},{"$f":"美濃市・関市・郡上市!J31","v":0},{"$f":"美濃市・関市・郡上市!K31","v":0},{"$f":"VALUE(TRIM(LEFT(美濃市・関市・郡上市!M31,2)))","v":0},{"$f":"美濃市・関市・郡上市!N31","v":0},{"$f":"美濃市・関市・郡上市!O31","v":0},{"$f":"VALUE(TRIM(LEFT(美濃市・関市・郡上市!Q31,2)))","v":2},{"$f":"美濃市・関市・郡上市!R31","v":450},{"$f":"美濃市・関市・郡上市!S31","v":0},{"$f":"VALUE(TRIM(LEFT(美濃市・関市・郡上市!U31,2)))","v":7},{"$f":"美濃市・関市・郡上市!V31","v":9750},{"$f":"美濃市・関市・郡上市!W31","v":0},16,20500,0]
["郡上市",{"$f":"VALUE(TRIM(LEFT(美濃市・関市・郡上市!E48,2)))","v":7},{"$f":"美濃市・関市・郡上市!F48","v":8000},{"$f":"美濃市・関市・郡上市!G48","v":0},{"$f":"VALUE(TRIM(LEFT(美濃市・関市・郡上市!I48,2)))","v":0},{"$f":"美濃市・関市・郡上市!J48","v":0},{"$f":"美濃市・関市・郡上市!K48","v":0},{"$f":"VALUE(TRIM(LEFT(美濃市・関市・郡上市!M48,2)))","v":0},{"$f":"美濃市・関市・郡上市!N48","v":0},{"$f":"美濃市・関市・郡上市!O48","v":0},{"$f":"VALUE(TRIM(LEFT(美濃市・関市・郡上市!Q48,2)))","v":1},{"$f":"美濃市・関市・郡上市!R48","v":50},{"$f":"美濃市・関市・郡上市!S48","v":0},{"$f":"VALUE(TRIM(LEFT(美濃市・関市・郡上市!U48,2)))","v":1},{"$f":"美濃市・関市・郡上市!V48","v":1300},{"$f":"美濃市・関市・郡上市!W48","v":0},9,9350,0]
["可児市",{"$f":"VALUE(TRIM(LEFT(可児市・可児郡・多治見市!E16,2)))","v":6},{"$f":"可児市・可児郡・多治見市!F16","v":14200},{"$f":"可児市・可児郡・多治見市!G16","v":0},{"$f":"VALUE(TRIM(LEFT(可児市・可児郡・多治見市!I16,2)))","v":4},{"$f":"可児市・可児郡・多治見市!J16","v":3400},{"$f":"可児市・可児郡・多治見市!K16","v":0},{"$f":"VALUE(TRIM(LEFT(可児市・可児郡・多治見市!M16,2)))","v":0},{"$f":"可児市・可児郡・多治見市!N16","v":0},{"$f":"可児市・可児郡・多治見市!O16","v":0},{"$f":"VALUE(TRIM(LEFT(可児市・可児郡・多治見市!Q16,2)))","v":2},{"$f":"可児市・可児郡・多治見市!R16","v":1350},{"$f":"可児市・可児郡・多治見市!S16","v":0},{"$f":"VALUE(TRIM(LEFT(可児市・可児郡・多治見市!U16,2)))","v":1},{"$f":"可児市・可児郡・多治見市!V16","v":200},{"$f":"可児市・可児郡・多治見市!W16","v":0},13,19150,0]
["可児郡",{"$f":"VALUE(TRIM(LEFT(可児市・可児郡・多治見市!E26,2)))","v":1},{"$f":"可児市・可児郡・多治見市!F26","v":2250},{"$f":"可児市・可児郡・多治見市!G26","v":0},{"$f":"VALUE(TRIM(LEFT(可児市・可児郡・多治見市!I26,2)))","v":0},{"$f":"可児市・可児郡・多治見市!J26","v":0},{"$f":"可児市・可児郡・多治見市!K26","v":0},{"$f":"VALUE(TRIM(LEFT(可児市・可児郡・多治見市!M26,2)))","v":0},{"$f":"可児市・可児郡・多治見市!N26","v":0},{"$f":"可児市・可児郡・多治見市!O26","v":0},{"$f":"VALUE(TRIM(LEFT(可児市・可児郡・多治見市!Q26,2)))","v":0},{"$f":"可児市・可児郡・多治見市!R26","v":0},{"$f":"可児市・可児郡・多治見市!S26","v":0},{"$f":"VALUE(TRIM(LEFT(可児市・可児郡・多治見市!U26,2)))","v":0},{"$f":"可児市・可児郡・多治見市!V26","v":0},{"$f":"可児市・可児郡・多治見市!W26","v":0},1,2250,0]
["多治見市",{"$f":"VALUE(TRIM(LEFT(可児市・可児郡・多治見市!E48,2)))","v":10},{"$f":"可児市・可児郡・多治見市!F48","v":21400},{"$f":"可児市・可児郡・多治見市!G48","v":0},{"$f":"VALUE(TRIM(LEFT(可児市・可児郡・多治見市!I48,2)))","v":3},{"$f":"可児市・可児郡・多治見市!J48","v":3000},{"$f":"可児市・可児郡・多治見市!K48","v":0},{"$f":"VALUE(TRIM(LEFT(可児市・可児郡・多治見市!M48,2)))","v":0},{"$f":"可児市・可児郡・多治見市!N48","v":0},{"$f":"可児市・可児郡・多治見市!O48","v":0},{"$f":"VALUE(TRIM(LEFT(可児市・可児郡・多治見市!Q48,2)))","v":2},{"$f":"可児市・可児郡・多治見市!R48","v":1450},{"$f":"可児市・可児郡・多治見市!S48","v":0},{"$f":"VALUE(TRIM(LEFT(可児市・可児郡・多治見市!U48,2)))","v":0},{"$f":"可児市・可児郡・多治見市!V48","v":0},{"$f":"可児市・可児郡・多治見市!W48","v":0},15,25850,0]
["土岐市",{"$f":"VALUE(TRIM(LEFT(土岐市・瑞浪市・恵那市!E14,2)))","v":5},{"$f":"土岐市・瑞浪市・恵那市!F14","v":9850},{"$f":"土岐市・瑞浪市・恵那市!G14","v":0},{"$f":"VALUE(TRIM(LEFT(土岐市・瑞浪市・恵那市!I14,2)))","v":4},{"$f":"土岐市・瑞浪市・恵那市!J14","v":1750},{"$f":"土岐市・瑞浪市・恵那市!K14","v":0},{"$f":"VALUE(TRIM(LEFT(土岐市・瑞浪市・恵那市!M14,2)))","v":0},{"$f":"土岐市・瑞浪市・恵那市!N14","v":0},{"$f":"土岐市・瑞浪市・恵那市!O14","v":0},{"$f":"VALUE(TRIM(LEFT(土岐市・瑞浪市・恵那市!Q14,2)))","v":1},{"$f":"土岐市・瑞浪市・恵那市!R14","v":650},{"$f":"土岐市・瑞浪市・恵那市!S14","v":0},{"$f":"VALUE(TRIM(LEFT(土岐市・瑞浪市・恵那市!U14,2)))","v":0},{"$f":"土岐市・瑞浪市・恵那市!V14","v":0},{"$f":"土岐市・瑞浪市・恵那市!W14","v":0},10,12250,0]
["瑞浪市",{"$f":"VALUE(TRIM(LEFT(土岐市・瑞浪市・恵那市!E27,2)))","v":4},{"$f":"土岐市・瑞浪市・恵那市!F27","v":7450},{"$f":"土岐市・瑞浪市・恵那市!G27","v":0},{"$f":"VALUE(TRIM(LEFT(土岐市・瑞浪市・恵那市!I27,2)))","v":0},{"$f":"土岐市・瑞浪市・恵那市!J27","v":0},{"$f":"土岐市・瑞浪市・恵那市!K27","v":0},{"$f":"VALUE(TRIM(LEFT(土岐市・瑞浪市・恵那市!M27,2)))","v":0},{"$f":"土岐市・瑞浪市・恵那市!N27","v":0},{"$f":"土岐市・瑞浪市・恵那市!O27","v":0},{"$f":"VALUE(TRIM(LEFT(土岐市・瑞浪市・恵那市!Q27,2)))","v":2},{"$f":"土岐市・瑞浪市・恵那市!R27","v":450},{"$f":"土岐市・瑞浪市・恵那市!S27","v":0},{"$f":"VALUE(TRIM(LEFT(土岐市・瑞浪市・恵那市!U27,2)))","v":0},{"$f":"土岐市・瑞浪市・恵那市!V27","v":0},{"$f":"土岐市・瑞浪市・恵那市!W27","v":0},6,7900,0]
["恵那市",{"$f":"VALUE(TRIM(LEFT(土岐市・瑞浪市・恵那市!E48,2)))","v":8},{"$f":"土岐市・瑞浪市・恵那市!F48","v":10050},{"$f":"土岐市・瑞浪市・恵那市!G48","v":0},{"$f":"VALUE(TRIM(LEFT(土岐市・瑞浪市・恵那市!I48,2)))","v":1},{"$f":"土岐市・瑞浪市・恵那市!J48","v":1250},{"$f":"土岐市・瑞浪市・恵那市!K48","v":0},{"$f":"VALUE(TRIM(LEFT(土岐市・瑞浪市・恵那市!M48,2)))","v":0},{"$f":"土岐市・瑞浪市・恵那市!N48","v":0},{"$f":"土岐市・瑞浪市・恵那市!O48","v":0},{"$f":"VALUE(TRIM(LEFT(土岐市・瑞浪市・恵那市!Q48,2)))","v":1},{"$f":"土岐市・瑞浪市・恵那市!R48","v":500},{"$f":"土岐市・瑞浪市・恵那市!S48","v":0},{"$f":"VALUE(TRIM(LEFT(土岐市・瑞浪市・恵那市!U48,2)))","v":2},{"$f":"土岐市・瑞浪市・恵那市!V48","v":500},{"$f":"土岐市・瑞浪市・恵那市!W48","v":0},12,12300,0]
["中津川市",{"$f":"VALUE(TRIM(LEFT(中津川市・下呂市!E26,2)))","v":14},{"$f":"中津川市・下呂市!F26","v":16600},{"$f":"中津川市・下呂市!G26","v":0},{"$f":"VALUE(TRIM(LEFT(中津川市・下呂市!I26,2)))","v":0},{"$f":"中津川市・下呂市!J26","v":0},{"$f":"中津川市・下呂市!K26","v":0},{"$f":"VALUE(TRIM(LEFT(中津川市・下呂市!M26,2)))","v":0},{"$f":"中津川市・下呂市!N26","v":0},{"$f":"中津川市・下呂市!O26","v":0},{"$f":"VALUE(TRIM(LEFT(中津川市・下呂市!Q26,2)))","v":1},{"$f":"中津川市・下呂市!R26","v":1200},{"$f":"中津川市・下呂市!S26","v":0},{"$f":"VALUE(TRIM(LEFT(中津川市・下呂市!U26,2)))","v":0},{"$f":"中津川市・下呂市!V26","v":0},{"$f":"中津川市・下呂市!W26","v":0},15,17800,0]
["下呂市",{"$f":"VALUE(TRIM(LEFT(中津川市・下呂市!E48,2)))","v":8},{"$f":"中津川市・下呂市!F48","v":8600},{"$f":"中津川市・下呂市!G48","v":0},{"$f":"VALUE(TRIM(LEFT(中津川市・下呂市!I48,2)))","v":0},{"$f":"中津川市・下呂市!J48","v":0},{"$f":"中津川市・下呂市!K48","v":0},{"$f":"VALUE(TRIM(LEFT(中津川市・下呂市!M48,2)))","v":0},{"$f":"中津川市・下呂市!N48","v":0},{"$f":"中津川市・下呂市!O48","v":0},{"$f":"VALUE(TRIM(LEFT(中津川市・下呂市!Q48,2)))","v":2},{"$f":"中津川市・下呂市!R48","v":600},{"$f":"中津川市・下呂市!S48","v":0},{"$f":"VALUE(TRIM(LEFT(中津川市・下呂市!U48,2)))","v":0},{"$f":"中津川市・下呂市!V48","v":0},{"$f":"中津川市・下呂市!W48","v":0},10,9200,0]
["高山市",{"$f":"VALUE(TRIM(LEFT(高山市・飛騨市!E26,2)))","v":11},{"$f":"高山市・飛騨市!F26","v":17350},{"$f":"高山市・飛騨市!G26","v":0},{"$f":"VALUE(TRIM(LEFT(高山市・飛騨市!I26,2)))","v":1},{"$f":"高山市・飛騨市!J26","v":800},{"$f":"高山市・飛騨市!K26","v":0},{"$f":"VALUE(TRIM(LEFT(高山市・飛騨市!M26,2)))","v":0},{"$f":"高山市・飛騨市!N26","v":0},{"$f":"高山市・飛騨市!O26","v":0},{"$f":"VALUE(TRIM(LEFT(高山市・飛騨市!Q26,2)))","v":1},{"$f":"高山市・飛騨市!R26","v":900},{"$f":"高山市・飛騨市!S26","v":0},{"$f":"VALUE(TRIM(LEFT(高山市・飛騨市!U26,2)))","v":1},{"$f":"高山市・飛騨市!V26","v":1850},{"$f":"高山市・飛騨市!W26","v":0},14,20900,0]
["飛騨市",{"$f":"VALUE(TRIM(LEFT(高山市・飛騨市!E48,2)))","v":7},{"$f":"高山市・飛騨市!F48","v":5550},{"$f":"高山市・飛騨市!G48","v":0},{"$f":"VALUE(TRIM(LEFT(高山市・飛騨市!I48,2)))","v":0},{"$f":"高山市・飛騨市!J48","v":0},{"$f":"高山市・飛騨市!K48","v":0},{"$f":"VALUE(TRIM(LEFT(高山市・飛騨市!M48,2)))","v":0},{"$f":"高山市・飛騨市!N48","v":0},{"$f":"高山市・飛騨市!O48","v":0},{"$f":"VALUE(TRIM(LEFT(高山市・飛騨市!Q48,2)))","v":2},{"$f":"高山市・飛騨市!R48","v":150},{"$f":"高山市・飛騨市!S48","v":0},{"$f":"VALUE(TRIM(LEFT(高山市・飛騨市!U48,2)))","v":1},{"$f":"高山市・飛騨市!V48","v":800},{"$f":"高山市・飛騨市!W48","v":0},10,6500,0]
["合計",{"$f":"SUM(B5:B33)","v":189},{"$f":"SUM(C5:C33)","v":302150},{"$f":"SUM(D5:D33)","v":0},14,11200,{"$f":"SUM(G5:G33)","v":0},2,600,{"$f":"SUM(J5:J33)","v":0},44,19150,0,76,128550,0,325,461650,0]
[null,null,null,null,null,null,null,null,null,null,null,null,null,null,null,null,null,null,null,null,"㈱中日総合サービス"]

{"sheet":"地図","index":6,"n_rows":0,"n_cols":0,"rows_kept":0,"cut":false,"hidden":false,"merged":[]}

{"sheet":"岐阜市","index":7,"n_rows":49,"n_cols":24,"rows_kept":49,"cut":false,"hidden":false,"merged":[[0,17,0,20],[3,15,3,17],[0,22,1,23],[3,7,3,9],[1,17,1,20],[3,11,3,13],[3,19,3,21],[0,1,1,4],[3,3,3,5],[2,9,2,10],[3,0,3,1],[1,5,1,6],[0,5,0,6],[1,8,1,14],[0,8,0,14]]}
["折込日",null,null,null,null,"広告主",null,null,null,null,null,null,null,null,null,null,"サイズ",null,null,null,null,"取次店"]
[null,null,null,null,null,"チラシ銘柄",null,null,null,null,null,null,null,null,null,null,"部数",{"$f":"A6","v":0}]
[]
["地区",null,null,"中日新聞",null,null,"枚数","朝日新聞",null,null,"枚数","毎日新聞",null,null,"枚数","読売新聞",null,null,"枚数","岐阜新聞",null,null,"枚数","備考"]
["岐阜市",null,null,210110101195,"岐阜中央（中野）N",1450,null,null,null,"",null,null,null,"",null,210110405004,"岐阜南部",700,null,210110504010,"県庁北AMS",4900,null,"岐阜市全域の場合"]
[{"$f":"SUM(G48,K48,O48,S48,W48)","v":0},{"$f":"SUM(F48,J48,N48,R48,V48)","v":108250},null,210110101350,"岐阜中野入舟支店NM",1800,null,null,null,"",null,null,null,"",null,210110405005,"岐北",300,null,210110504020,"県庁前AMS",1800,null,"羽島郡笠松200枚"]
[null,null,null,210110101180,"岐阜北部（松山）N",1700,null,null,null,"",null,null,null,"",null,210110405006,"長良",450,null,210110504340,"鶉A",2050,null,"本巣郡北方西郷500枚"]
[null,null,null,210110101230,"岐阜駅前N",1450,null,null,null,"",null,null,null,"",null,210110405007,"岐阜県庁前",750,null,210110504040,"長森南岐南AMS",2750,null,"山県市高富950枚"]
[null,null,null,210110101210,"鏡島N",1750,null,null,null,"",null,null,null,"",null,210110405008,"忠節",550,null,210110504045,"岐阜南AMS",1950,null,"をプラス"]
[null,null,null,210110101220,"岐阜本荘N",1200,null,null,null,"",null,null,null,"",null,210110405011,"岐阜本荘",400,null,210110504060,"長森東日野AS",2200]
[null,null,null,210110101250,"手力NS",1700,null,null,null,"",null,null,null,"",null,210110405012,"岐阜東部",800,null,210110504070,"岐阜AMS",4550]
[null,null,"*1",210110101240,"長森NM",2500,null,null,null,"",null,null,null,"",null,210110405014,"長良北部",500,null,210110504310,"本郷AMS",1400,null,"*1各務原市300枚含む"]
[null,null,"*2",210110101060,"岩田坂NM",650,null,null,null,"",null,null,null,"",null,null,null,"",null,210110504380,"加納三里AMS",2450,null,"*2各務原市100枚含む"]
[null,null,null,210110101170,"日野長森東NM",950,null,null,null,"",null,null,null,"",null,null,null,"",null,210110504390,"加納六条AMS",2150]
[null,null,null,210110101050,"下芥見NM",800,null,null,null,"",null,null,null,"",null,null,null,"",null,210110504100,"茜部川手AMS",1900]
[null,null,null,210110101040,"大洞NS",1200,null,null,null,"",null,null,null,"",null,null,null,"",null,210110504110,"岐阜中部AMS",2700]
[null,null,null,210110101270,"岐阜加納NM",1800,null,null,null,"",null,null,null,"",null,null,null,"",null,210110504120,"岐阜西部AMS",1050]
[null,null,null,210110101320,"岐阜茜部NMS",1450,null,null,null,"",null,null,null,"",null,null,null,"",null,210110504130,"岐阜東部AMS",2250]
[null,null,null,210110101280,"加納西部NM",700,null,null,null,"",null,null,null,"",null,null,null,"",null,210110504140,"東栄AMS",1600]
[null,null,null,210110101290,"加納六条NM",1150,null,null,null,"",null,null,null,"",null,null,null,"",null,210110504150,"長良西部AMS",2800]
[null,null,null,210110101300,"岐阜県庁前N",1850,null,null,null,"",null,null,null,"",null,null,null,"",null,210110504170,"長良東部AMS",2600]
[null,null,null,210110101310,"鶉NMS",1000,null,null,null,"",null,null,null,"",null,null,null,"",null,210110504290,"鷺山西部AMS",900]
[null,null,null,210110101160,"近の島N",1350,null,null,null,"",null,null,null,"",null,null,null,"",null,210110504180,"島AMS",1050]
[null,null,null,210110101130,"尻毛NS",1600,null,null,null,"",null,null,null,"",null,null,null,"",null,210110504190,"城西AMS",1850]
[null,null,null,210110101140,"岐商前NS",1500,null,null,null,"",null,null,null,"",null,null,null,"",null,210110504200,"則武早田AM",2150]
[null,null,null,210110101020,"鷺山NS",1250,null,null,null,"",null,null,null,"",null,null,null,"",null,210110504220,"黒野AMNS",1500]
[null,null,null,210110101340,"岐阜ときわN",750,null,null,null,"",null,null,null,"",null,null,null,"",null,210110504230,"黒野西岐陽AM",900]
[null,null,null,210110101120,"岐阜則武NS",1100,null,null,null,"",null,null,null,"",null,null,null,"",null,210110504240,"北方七郷AMS",1000]
[null,null,null,210110101010,"鵜飼黒野NAS",1750,null,null,null,"",null,null,null,"",null,null,null,"",null,210110504245,"北方東部AMS",1350]
[null,null,"*3",210110101030,"藍川橋NS",2650,null,null,null,"",null,null,null,"",null,null,null,"",null,210110504250,"芥見A",1550,null,"*3関市1,200枚含む"]
[null,null,null,210110101080,"長良北部NS",1250,null,null,null,"",null,null,null,"",null,null,null,"",null,210110504260,"藍川AMNS",2150]
[null,null,null,210110101090,"長良西部N",2200,null,null,null,"",null,null,null,"",null,null,null,"",null,210110504270,"岩野田AMN",1900]
[null,null,null,210110101100,"長良中央N",900,null,null,null,"",null,null,null,"",null,null,null,"",null,210110504280,"大洞団地AMNS",1300]
[null,null,"*4",210110101360,"柳津NM",1400,null,null,null,"",null,null,null,"",null,null,null,"",null,210110504350,"柳津AMS",1000,null,"*4羽島郡300枚含む"]
[null,null,null,210110101370,"茜部佐波NMS",1300,null,null,null,"",null,null,null,"",null,null,null,""]
[null,null,null,null,null,"",null,null,null,"",null,null,null,"",null,null,null,"",null,null,null,""]
[null,null,null,null,null,"",null,null,null,"",null,null,null,"",null,null,null,"",null,null,null,""]
[null,null,null,null,null,"",null,null,null,"",null,null,null,"",null,null,null,"",null,null,null,""]
[null,null,null,null,null,"",null,null,null,"",null,null,null,"",null,null,null,"",null,null,null,""]
[null,null,null,null,null,"",null,null,null,"",null,null,null,"",null,null,null,"",null,null,null,""]
[null,null,null,null,null,"",null,null,null,"",null,null,null,"",null,null,null,"",null,null,null,""]
[null,null,null,null,null,"",null,null,null,"",null,null,null,"",null,null,null,"",null,null,null,""]
[null,null,null,null,null,"",null,null,null,"",null,null,null,"",null,null,null,"",null,null,null,""]
[null,null,null,null,null,"",null,null,null,"",null,null,null,"",null,null,null,"",null,null,null,""]
[null,null,null,null,null,"",null,null,null,"",null,null,null,"",null,null,null,"",null,null,null,""]
[null,null,null,null,null,"",null,null,null,"",null,null,null,"",null,null,null,"",null,null,null,""]
[null,null,null,null,null,"",null,null,null,"",null,null,null,"",null,null,null,"",null,null,null,""]
[null,null,null,null,{"$f":"CONCATENATE(FIXED(COUNTA(E5:E47),0,0),\"　店\")","v":"31　店"},{"$f":"SUM(F5:F47)","v":44100},{"$f":"SUM(G5:G47)","v":0},null,{"$f":"CONCATENATE(FIXED(COUNTA(I5:I47),0,0),\"　店\")","v":"0　店"},{"$f":"SUM(J5:J47)","v":0},{"$f":"SUM(K5:K47)","v":0},null,{"$f":"CONCATENATE(FIXED(COUNTA(M5:M47),0,0),\"　店\")","v":"0　店"},{"$f":"SUM(N5:N47)","v":0},{"$f":"SUM(O5:O47)","v":0},null,{"$f":"CONCATENATE(FIXED(COUNTA(Q5:Q47),0,0),\"　店\")","v":"8　店"},{"$f":"SUM(R5:R47)","v":4450},{"$f":"SUM(S5:S47)","v":0},null,{"$f":"CONCATENATE(FIXED(COUNTA(U5:U47),0,0),\"　店\")","v":"30　店"},{"$f":"SUM(V5:V47)","v":59700},{"$f":"SUM(W5:W47)","v":0},{"$f":"SUM(X5:X47)","v":0}]
["2025年後期（11月1日以降）",null,null,null,null,null,null,null,null,null,null,null,null,null,null,null,null,null,null,null,null,null,null,"㈱中日総合サービス"]

{"sheet":"瑞穂市・本巣市・本巣郡・山県市","index":8,"n_rows":49,"n_cols":24,"rows_kept":49,"cut":false,"hidden":false,"merged":[[38,0,38,1],[38,3,38,5],[38,7,38,9],[38,11,38,13],[38,15,38,17],[28,7,28,9],[15,0,15,1],[28,0,28,1],[28,3,28,5],[15,11,15,13],[15,7,15,9],[28,11,28,13],[28,15,28,17],[38,19,38,21],[0,22,1,23],[1,17,1,20],[28,19,28,21],[15,19,15,21],[15,15,15,17],[0,17,0,20],[3,19,3,21],[0,8,0,14],[3,7,3,9],[15,3,15,5],[3,15,3,17],[3,11,3,13],[1,8,1,14],[0,1,1,4],[2,9,2,10],[3,0,3,1],[0,5,0,6],[1,5,1,6],[3,3,3,5]]}
["折込日",null,null,null,null,"広告主",null,null,null,null,null,null,null,null,null,null,"サイズ",null,null,null,null,"取次店"]
[null,null,null,null,null,"チラシ銘柄",null,null,null,null,null,null,null,null,null,null,"部数",{"$f":"A6+A18+A31+A41","v":0}]
[]
["地区",null,null,"中日新聞",null,null,"枚数","朝日新聞",null,null,"枚数","毎日新聞",null,null,"枚数","読売新聞",null,null,"枚数","岐阜新聞",null,null,"枚数","備考"]
["瑞穂市",null,null,210180101010,"穂積S",1350,null,null,null,"",null,null,null,"",null,210180405010,"瑞穂",400,null,210180504015,"瑞穂NAMS",2350]
[{"$f":"SUM(G14,K14,O14,S14,W14)","v":0},{"$f":"SUM(F14,J14,N14,R14,V14)","v":11100},null,210180101045,"美江寺NAMGS",2400,null,null,null,"",null,null,null,"",null,null,null,"",null,210180504025,"瑞穂北NAMS",2600]
[null,null,null,210180101050,"瑞穂牛牧N",2000,null,null,null,"",null,null,null,"",null,null,null,"",null,null,null,""]
[null,null,null,null,null,"",null,null,null,"",null,null,null,"",null,null,null,"",null,null,null,""]
[null,null,null,null,null,"",null,null,null,"",null,null,null,"",null,null,null,"",null,null,null,""]
[null,null,null,null,null,"",null,null,null,"",null,null,null,"",null,null,null,"",null,null,null,""]
[null,null,null,null,null,"",null,null,null,"",null,null,null,"",null,null,null,"",null,null,null,""]
[null,null,null,null,null,"",null,null,null,"",null,null,null,"",null,null,null,"",null,null,null,""]
[null,null,null,null,null,"",null,null,null,"",null,null,null,"",null,null,null,"",null,null,null,""]
[null,null,null,null,{"$f":"CONCATENATE(FIXED(COUNTA(E5:E13),0,0),\"　店\")","v":"3　店"},{"$f":"SUM(F5:F13)","v":5750},{"$f":"SUM(G5:G13)","v":0},null,{"$f":"CONCATENATE(FIXED(COUNTA(I5:I13),0,0),\"　店\")","v":"0　店"},{"$f":"SUM(J5:J13)","v":0},{"$f":"SUM(K5:K13)","v":0},null,{"$f":"CONCATENATE(FIXED(COUNTA(M5:M13),0,0),\"　店\")","v":"0　店"},{"$f":"SUM(N5:N13)","v":0},{"$f":"SUM(O5:O13)","v":0},null,{"$f":"CONCATENATE(FIXED(COUNTA(Q5:Q13),0,0),\"　店\")","v":"1　店"},{"$f":"SUM(R5:R13)","v":400},{"$f":"SUM(S5:S13)","v":0},null,{"$f":"CONCATENATE(FIXED(COUNTA(U5:U13),0,0),\"　店\")","v":"2　店"},{"$f":"SUM(V5:V13)","v":4950},{"$f":"SUM(W5:W13)","v":0},{"$f":"SUM(X5:X13)","v":0}]
[]
["地区",null,null,"中日新聞",null,null,"枚数","朝日新聞",null,null,"枚数","毎日新聞",null,null,"枚数","読売新聞",null,null,"枚数","岐阜新聞",null,null,"枚数","備考"]
["本巣市",null,null,210150101080,"北方西部NS",1950,null,null,null,"",null,null,null,"",null,null,null,"",null,210150504040,"糸貫AMS",1650]
[{"$f":"SUM(G27,K27,O27,S27,W27)","v":0},{"$f":"SUM(F27,J27,N27,R27,V27)","v":7600},null,null,null,"",null,null,null,"",null,null,null,"",null,null,null,"",null,210150504060,"真正AM",1650]
[null,null,null,null,null,"",null,null,null,"",null,null,null,"",null,null,null,"",null,210150501040,"山添CNAMS",1750]
[null,null,null,null,null,"",null,null,null,"",null,null,null,"",null,null,null,"",null,210170501050,"根尾CNAM",600]
[null,null,null,null,null,"",null,null,null,"",null,null,null,"",null,null,null,"",null,null,null,""]
[null,null,null,null,null,"",null,null,null,"",null,null,null,"",null,null,null,"",null,null,null,""]
[null,null,null,null,null,"",null,null,null,"",null,null,null,"",null,null,null,"",null,null,null,""]
[null,null,null,null,null,"",null,null,null,"",null,null,null,"",null,null,null,"",null,null,null,""]
[null,null,null,null,null,"",null,null,null,"",null,null,null,"",null,null,null,"",null,null,null,""]
[null,null,null,null,null,"",null,null,null,"",null,null,null,"",null,null,null,"",null,null,null,""]
[null,null,null,null,{"$f":"CONCATENATE(FIXED(COUNTA(E17:E26),0,0),\"　店\")","v":"1　店"},{"$f":"SUM(F17:F26)","v":1950},{"$f":"SUM(G17:G26)","v":0},null,{"$f":"CONCATENATE(FIXED(COUNTA(I17:I26),0,0),\"　店\")","v":"0　店"},{"$f":"SUM(J17:J26)","v":0},{"$f":"SUM(K17:K26)","v":0},null,{"$f":"CONCATENATE(FIXED(COUNTA(M17:M26),0,0),\"　店\")","v":"0　店"},{"$f":"SUM(N17:N26)","v":0},{"$f":"SUM(O17:O26)","v":0},null,{"$f":"CONCATENATE(FIXED(COUNTA(Q17:Q26),0,0),\"　店\")","v":"0　店"},{"$f":"SUM(R17:R26)","v":0},{"$f":"SUM(S17:S26)","v":0},null,{"$f":"CONCATENATE(FIXED(COUNTA(U17:U26),0,0),\"　店\")","v":"4　店"},{"$f":"SUM(V17:V26)","v":5650},{"$f":"SUM(W17:W26)","v":0},{"$f":"SUM(X17:X26)","v":0}]
[]
["地区",null,null,"中日新聞",null,null,"枚数","朝日新聞",null,null,"枚数","毎日新聞",null,null,"枚数","読売新聞",null,null,"枚数","岐阜新聞",null,null,"枚数","備考"]
["本巣郡",null,null,210155101010,"北方NS",1500,null,null,null,"",null,null,null,"",null,210155405010,"本巣北方",400,null,null,null,""]
[{"$f":"SUM(G37,K37,O37,S37,W37)","v":0},{"$f":"SUM(F37,J37,N37,R37,V37)","v":3150},"*1",210155101020,"北方西郷NS",1250,null,null,null,"",null,null,null,"",null,null,null,"",null,null,null,"",null,"*1岐阜市500枚含む"]
[null,null,null,null,null,"",null,null,null,"",null,null,null,"",null,null,null,"",null,null,null,""]
[null,null,null,null,null,"",null,null,null,"",null,null,null,"",null,null,null,"",null,null,null,""]
[null,null,null,null,null,"",null,null,null,"",null,null,null,"",null,null,null,"",null,null,null,""]
[null,null,null,null,null,"",null,null,null,"",null,null,null,"",null,null,null,"",null,null,null,""]
[null,null,null,null,null,"",null,null,null,"",null,null,null,"",null,null,null,"",null,null,null,""]
[null,null,null,null,{"$f":"CONCATENATE(FIXED(COUNTA(E30:E36),0,0),\"　店\")","v":"2　店"},{"$f":"SUM(F30:F36)","v":2750},{"$f":"SUM(G30:G36)","v":0},null,{"$f":"CONCATENATE(FIXED(COUNTA(I30:I36),0,0),\"　店\")","v":"0　店"},{"$f":"SUM(J30:J36)","v":0},{"$f":"SUM(K30:K36)","v":0},null,{"$f":"CONCATENATE(FIXED(COUNTA(M30:M36),0,0),\"　店\")","v":"0　店"},{"$f":"SUM(N30:N36)","v":0},{"$f":"SUM(O30:O36)","v":0},null,{"$f":"CONCATENATE(FIXED(COUNTA(Q30:Q36),0,0),\"　店\")","v":"1　店"},{"$f":"SUM(R30:R36)","v":400},{"$f":"SUM(S30:S36)","v":0},null,{"$f":"CONCATENATE(FIXED(COUNTA(U30:U36),0,0),\"　店\")","v":"0　店"},{"$f":"SUM(V30:V36)","v":0},{"$f":"SUM(W30:W36)","v":0},{"$f":"SUM(X30:X36)","v":0}]
[]
["地区",null,null,"中日新聞",null,null,"枚数","朝日新聞",null,null,"枚数","毎日新聞",null,null,"枚数","読売新聞",null,null,"枚数","岐阜新聞",null,null,"枚数","備考"]
["山県市",null,"*2",210160101020,"高富NA",2500,null,null,null,"",null,null,null,"",null,210160405002,"高富大桑",100,null,210160504020,"山県NMS",2100,null,"*2岐阜市950枚含む"]
[{"$f":"SUM(G48,K48,O48,S48,W48)","v":0},{"$f":"SUM(F48,J48,N48,R48,V48)","v":7700},null,210160101011,"岐阜美山NAMGYS",1350,null,null,null,"",null,null,null,"",null,null,null,"",null,210160504010,"山県高富AMNS",1650]
[null,null,null,null,null,"",null,null,null,"",null,null,null,"",null,null,null,"",null,null,null,""]
[null,null,null,null,null,"",null,null,null,"",null,null,null,"",null,null,null,"",null,null,null,""]
[null,null,null,null,null,"",null,null,null,"",null,null,null,"",null,null,null,"",null,null,null,""]
[null,null,null,null,null,"",null,null,null,"",null,null,null,"",null,null,null,"",null,null,null,""]
[null,null,null,null,null,"",null,null,null,"",null,null,null,"",null,null,null,"",null,null,null,""]
[null,null,null,null,null,"",null,null,null,"",null,null,null,"",null,null,null,"",null,null,null,""]
[null,null,null,null,{"$f":"CONCATENATE(FIXED(COUNTA(E40:E47),0,0),\"　店\")","v":"2　店"},{"$f":"SUM(F40:F47)","v":3850},{"$f":"SUM(G40:G47)","v":0},null,{"$f":"CONCATENATE(FIXED(COUNTA(I40:I47),0,0),\"　店\")","v":"0　店"},{"$f":"SUM(J40:J47)","v":0},{"$f":"SUM(K40:K47)","v":0},null,{"$f":"CONCATENATE(FIXED(COUNTA(M40:M47),0,0),\"　店\")","v":"0　店"},{"$f":"SUM(N40:N47)","v":0},{"$f":"SUM(O40:O47)","v":0},null,{"$f":"CONCATENATE(FIXED(COUNTA(Q40:Q47),0,0),\"　店\")","v":"1　店"},{"$f":"SUM(R40:R47)","v":100},{"$f":"SUM(S40:S47)","v":0},null,{"$f":"CONCATENATE(FIXED(COUNTA(U40:U47),0,0),\"　店\")","v":"2　店"},{"$f":"SUM(V40:V47)","v":3750},{"$f":"SUM(W40:W47)","v":0},{"$f":"SUM(X40:X47)","v":0}]
["2025年後期（11月1日以降）",null,null,null,null,null,null,null,null,null,null,null,null,null,null,null,null,null,null,null,null,null,null,"㈱中日総合サービス"]

{"sheet":"羽島市・羽島郡","index":9,"n_rows":49,"n_cols":24,"rows_kept":49,"cut":false,"hidden":false,"merged":[[3,15,3,17],[3,19,3,21],[27,0,27,1],[27,3,27,5],[27,7,27,9],[27,11,27,13],[27,15,27,17],[27,19,27,21],[2,9,2,10],[3,0,3,1],[3,3,3,5],[3,7,3,9],[3,11,3,13],[0,1,1,4],[0,17,0,20],[0,22,1,23],[1,17,1,20],[0,5,0,6],[0,8,0,14],[1,5,1,6],[1,8,1,14]]}
["折込日",null,null,null,null,"広告主",null,null,null,null,null,null,null,null,null,null,"サイズ",null,null,null,null,"取次店"]
[null,null,null,null,null,"チラシ銘柄",null,null,null,null,null,null,null,null,null,null,"部数",{"$f":"A6+A30","v":0}]
[]
["地区",null,null,"中日新聞",null,null,"枚数","朝日新聞",null,null,"枚数","毎日新聞",null,null,"枚数","読売新聞",null,null,"枚数","岐阜新聞",null,null,"枚数","備考"]
["羽島市",null,null,210120101020,"羽島東部N",2200,null,null,null,"",null,null,null,"",null,210120405001,"羽島",550,null,210120504010,"羽島中央AMS",1450]
[{"$f":"SUM(G26,K26,O26,S26,W26)","v":0},{"$f":"SUM(F26,J26,N26,R26,V26)","v":13850},null,210120101040,"羽島足近N",800,null,null,null,"",null,null,null,"",null,null,null,"",null,210120504020,"羽島南部AMS",1800]
[null,null,null,210120101030,"羽島中央N",1000,null,null,null,"",null,null,null,"",null,null,null,"",null,210120504030,"羽島北部AMS",1400]
[null,null,null,210120101010,"竹ヶ鼻N",2350,null,null,null,"",null,null,null,"",null,null,null,"",null,null,null,""]
[null,null,null,210120101050,"羽島小熊N",1200,null,null,null,"",null,null,null,"",null,null,null,"",null,null,null,""]
[null,null,null,210120101060,"羽島南部N",1100,null,null,null,"",null,null,null,"",null,null,null,"",null,null,null,""]
[null,null,null,null,null,"",null,null,null,"",null,null,null,"",null,null,null,"",null,null,null,""]
[null,null,null,null,null,"",null,null,null,"",null,null,null,"",null,null,null,"",null,null,null,""]
[null,null,null,null,null,"",null,null,null,"",null,null,null,"",null,null,null,"",null,null,null,""]
[null,null,null,null,null,"",null,null,null,"",null,null,null,"",null,null,null,"",null,null,null,""]
[null,null,null,null,null,"",null,null,null,"",null,null,null,"",null,null,null,"",null,null,null,""]
[null,null,null,null,null,"",null,null,null,"",null,null,null,"",null,null,null,"",null,null,null,""]
[null,null,null,null,null,"",null,null,null,"",null,null,null,"",null,null,null,"",null,null,null,""]
[null,null,null,null,null,"",null,null,null,"",null,null,null,"",null,null,null,"",null,null,null,""]
[null,null,null,null,null,"",null,null,null,"",null,null,null,"",null,null,null,"",null,null,null,""]
[null,null,null,null,null,"",null,null,null,"",null,null,null,"",null,null,null,"",null,null,null,""]
[null,null,null,null,null,"",null,null,null,"",null,null,null,"",null,null,null,"",null,null,null,""]
[null,null,null,null,null,"",null,null,null,"",null,null,null,"",null,null,null,"",null,null,null,""]
[null,null,null,null,null,"",null,null,null,"",null,null,null,"",null,null,null,"",null,null,null,""]
[null,null,null,null,null,"",null,null,null,"",null,null,null,"",null,null,null,"",null,null,null,""]
[null,null,null,null,null,"",null,null,null,"",null,null,null,"",null,null,null,"",null,null,null,""]
[null,null,null,null,{"$f":"CONCATENATE(FIXED(COUNTA(E5:E25),0,0),\"　店\")","v":"6　店"},{"$f":"SUM(F5:F25)","v":8650},{"$f":"SUM(G5:G25)","v":0},null,{"$f":"CONCATENATE(FIXED(COUNTA(I5:I25),0,0),\"　店\")","v":"0　店"},{"$f":"SUM(J5:J25)","v":0},{"$f":"SUM(K5:K25)","v":0},null,{"$f":"CONCATENATE(FIXED(COUNTA(M5:M25),0,0),\"　店\")","v":"0　店"},{"$f":"SUM(N5:N25)","v":0},{"$f":"SUM(O5:O25)","v":0},null,{"$f":"CONCATENATE(FIXED(COUNTA(Q5:Q25),0,0),\"　店\")","v":"1　店"},{"$f":"SUM(R5:R25)","v":550},{"$f":"SUM(S5:S25)","v":0},null,{"$f":"CONCATENATE(FIXED(COUNTA(U5:U25),0,0),\"　店\")","v":"3　店"},{"$f":"SUM(V5:V25)","v":4650},{"$f":"SUM(W5:W25)","v":0},{"$f":"SUM(X5:X25)","v":0}]
[]
["地区",null,null,"中日新聞",null,null,"枚数","朝日新聞",null,null,"枚数","毎日新聞",null,null,"枚数","読売新聞",null,null,"枚数","岐阜新聞",null,null,"枚数","備考"]
["羽島郡",null,null,210140101050,"岐南徳田N",1300,null,null,null,"",null,null,null,"",null,210140405002,"岐南笠松",850,null,210140504030,"笠松AMS",1600,null,"羽島郡全域の場合"]
[{"$f":"SUM(G48,K48,O48,S48,W48)","v":0},{"$f":"SUM(F48,J48,N48,R48,V48)","v":7250},null,210140101060,"岐南東N",1550,null,null,null,"",null,null,null,"",null,null,null,"",null,null,null,"",null,"岐阜市柳津300枚をプラス"]
[null,null,"*1",210140101010,"笠松N",1950,null,null,null,"",null,null,null,"",null,null,null,"",null,null,null,"",null,"*1岐阜市200枚含む"]
[null,null,null,null,null,"",null,null,null,"",null,null,null,"",null,null,null,"",null,null,null,""]
[{"$f":"SUM(F41,J41,N41,R41,V41)","v":0},{"$f":"SUM(G41,K41,O41,S41,W41)","v":0},null,null,null,"",null,null,null,"",null,null,null,"",null,null,null,"",null,null,null,""]
[null,null,null,null,null,"",null,null,null,"",null,null,null,"",null,null,null,"",null,null,null,""]
[null,null,null,null,null,"",null,null,null,"",null,null,null,"",null,null,null,"",null,null,null,""]
[null,null,null,null,null,"",null,null,null,"",null,null,null,"",null,null,null,"",null,null,null,""]
[null,null,null,null,null,"",null,null,null,"",null,null,null,"",null,null,null,"",null,null,null,""]
[null,null,null,null,null,"",null,null,null,"",null,null,null,"",null,null,null,"",null,null,null,""]
[null,null,null,null,null,"",null,null,null,"",null,null,null,"",null,null,null,"",null,null,null,""]
[null,null,null,null,null,"",null,null,null,"",null,null,null,"",null,null,null,"",null,null,null,""]
[null,null,null,null,null,"",null,null,null,"",null,null,null,"",null,null,null,"",null,null,null,""]
[null,null,null,null,null,"",null,null,null,"",null,null,null,"",null,null,null,"",null,null,null,""]
[null,null,null,null,null,"",null,null,null,"",null,null,null,"",null,null,null,"",null,null,null,""]
[null,null,null,null,null,"",null,null,null,"",null,null,null,"",null,null,null,"",null,null,null,""]
[null,null,null,null,null,"",null,null,null,"",null,null,null,"",null,null,null,"",null,null,null,""]
[null,null,null,null,null,"",null,null,null,"",null,null,null,"",null,null,null,"",null,null,null,""]
[null,null,null,null,null,"",null,null,null,"",null,null,null,"",null,null,null,"",null,null,null,""]
[null,null,null,null,{"$f":"CONCATENATE(FIXED(COUNTA(E29:E47),0,0),\"　店\")","v":"3　店"},{"$f":"SUM(F29:F47)","v":4800},{"$f":"SUM(G29:G47)","v":0},null,{"$f":"CONCATENATE(FIXED(COUNTA(I29:I47),0,0),\"　店\")","v":"0　店"},{"$f":"SUM(J29:J47)","v":0},{"$f":"SUM(K29:K47)","v":0},null,{"$f":"CONCATENATE(FIXED(COUNTA(M29:M47),0,0),\"　店\")","v":"0　店"},{"$f":"SUM(N29:N47)","v":0},{"$f":"SUM(O29:O47)","v":0},null,{"$f":"CONCATENATE(FIXED(COUNTA(Q29:Q47),0,0),\"　店\")","v":"1　店"},{"$f":"SUM(R29:R47)","v":850},{"$f":"SUM(S29:S47)","v":0},null,{"$f":"CONCATENATE(FIXED(COUNTA(U29:U47),0,0),\"　店\")","v":"1　店"},{"$f":"SUM(V29:V47)","v":1600},{"$f":"SUM(W29:W47)","v":0},{"$f":"SUM(X29:X47)","v":0}]
["2025年後期（11月1日以降）",null,null,null,null,null,null,null,null,null,null,null,null,null,null,null,null,null,null,null,null,null,null,"㈱中日総合サービス"]

{"sheet":"各務原市","index":10,"n_rows":49,"n_cols":24,"rows_kept":49,"cut":false,"hidden":false,"merged":[[3,19,3,21],[2,9,2,10],[3,0,3,1],[3,3,3,5],[3,7,3,9],[3,11,3,13],[3,15,3,17],[0,1,1,4],[0,17,0,20],[0,22,1,23],[1,17,1,20],[0,5,0,6],[0,8,0,14],[1,5,1,6],[1,8,1,14]]}
["折込日",null,null,null,null,"広告主",null,null,null,null,null,null,null,null,null,null,"サイズ",null,null,null,null,"取次店"]
[null,null,null,null,null,"チラシ銘柄",null,null,null,null,null,null,null,null,null,null,"部数",{"$f":"A6","v":0}]
[]
["地区",null,null,"中日新聞",null,null,"枚数","朝日新聞",null,null,"枚数","毎日新聞",null,null,"枚数","読売新聞",null,null,"枚数","岐阜新聞",null,null,"枚数","備考"]
["各務原市",null,null,210130101010,"那加中央NS",1100,null,null,null,"",null,210130303010,"新那加",50,null,210130405001,"各務原中央",600,null,210130504010,"那加西部AMS",2650,null,"各務原市全域の場合"]
[{"$f":"SUM(G48,K48,O48,S48,W48)","v":0},{"$f":"SUM(F48,J48,N48,R48,V48)","v":31850},null,210130101020,"那加北部NS",2350,null,null,null,"",null,210130303040,"鵜沼各務原",550,null,210130405002,"鵜沼",250,null,210130504020,"那加東部AMS",1350,null,"岐阜市長森300枚"]
[null,null,null,210130101040,"稲羽N",1350,null,null,null,"",null,null,null,"",null,210130405003,"川島",150,null,210130504040,"蘇原AMS",2350,null,"岐阜市岩田坂100枚"]
[null,null,null,210130101050,"蘇原N",1300,null,null,null,"",null,null,null,"",null,null,null,"",null,210130504030,"蘇原北尾崎AMS",1700,null,"をプラス"]
[null,null,null,210130101060,"蘇原北部NS",1100,null,null,null,"",null,null,null,"",null,null,null,"",null,210130504050,"鵜沼かかみAM",1400]
[null,null,null,210130101070,"尾崎団地N",850,null,null,null,"",null,null,null,"",null,null,null,"",null,210130504060,"鵜沼各務原AM",1950]
[null,null,null,210130101080,"各務原中央町NS",1650,null,null,null,"",null,null,null,"",null,null,null,"",null,null,null,""]
[null,null,null,210130101090,"各務原NS",3100,null,null,null,"",null,null,null,"",null,null,null,"",null,null,null,""]
[null,null,null,210130101110,"鵜沼団地NS",2400,null,null,null,"",null,null,null,"",null,null,null,"",null,null,null,""]
[null,null,null,210130101130,"鵜沼東NS",2250,null,null,null,"",null,null,null,"",null,null,null,"",null,null,null,""]
[null,null,null,210130101120,"岐阜川島NAMGS",1400,null,null,null,"",null,null,null,"",null,null,null,"",null,null,null,""]
[null,null,null,null,null,"",null,null,null,"",null,null,null,"",null,null,null,"",null,null,null,""]
[null,null,null,null,null,"",null,null,null,"",null,null,null,"",null,null,null,"",null,null,null,""]
[null,null,null,null,null,"",null,null,null,"",null,null,null,"",null,null,null,"",null,null,null,""]
[null,null,null,null,null,"",null,null,null,"",null,null,null,"",null,null,null,"",null,null,null,""]
[null,null,null,null,null,"",null,null,null,"",null,null,null,"",null,null,null,"",null,null,null,""]
[null,null,null,null,null,"",null,null,null,"",null,null,null,"",null,null,null,"",null,null,null,""]
[null,null,null,null,null,"",null,null,null,"",null,null,null,"",null,null,null,"",null,null,null,""]
[null,null,null,null,null,"",null,null,null,"",null,null,null,"",null,null,null,"",null,null,null,""]
[null,null,null,null,null,"",null,null,null,"",null,null,null,"",null,null,null,"",null,null,null,""]
[null,null,null,null,null,"",null,null,null,"",null,null,null,"",null,null,null,"",null,null,null,""]
[null,null,null,null,null,"",null,null,null,"",null,null,null,"",null,null,null,"",null,null,null,""]
[null,null,null,null,null,"",null,null,null,"",null,null,null,"",null,null,null,"",null,null,null,""]
[null,null,null,null,null,"",null,null,null,"",null,null,null,"",null,null,null,"",null,null,null,""]
[null,null,null,null,null,"",null,null,null,"",null,null,null,"",null,null,null,"",null,null,null,""]
[null,null,null,null,null,"",null,null,null,"",null,null,null,"",null,null,null,"",null,null,null,""]
[null,null,null,null,null,"",null,null,null,"",null,null,null,"",null,null,null,"",null,null,null,""]
[null,null,null,null,null,"",null,null,null,"",null,null,null,"",null,null,null,"",null,null,null,""]
[null,null,null,null,null,"",null,null,null,"",null,null,null,"",null,null,null,"",null,null,null,""]
[null,null,null,null,null,"",null,null,null,"",null,null,null,"",null,null,null,"",null,null,null,""]
[null,null,null,null,null,"",null,null,null,"",null,null,null,"",null,null,null,"",null,null,null,""]
[null,null,null,null,null,"",null,null,null,"",null,null,null,"",null,null,null,"",null,null,null,""]
[null,null,null,null,null,"",null,null,null,"",null,null,null,"",null,null,null,"",null,null,null,""]
[null,null,null,null,null,"",null,null,null,"",null,null,null,"",null,null,null,"",null,null,null,""]
[null,null,null,null,null,"",null,null,null,"",null,null,null,"",null,null,null,"",null,null,null,""]
[null,null,null,null,null,"",null,null,null,"",null,null,null,"",null,null,null,"",null,null,null,""]
[null,null,null,null,null,"",null,null,null,"",null,null,null,"",null,null,null,"",null,null,null,""]
[null,null,null,null,null,"",null,null,null,"",null,null,null,"",null,null,null,"",null,null,null,""]
[null,null,null,null,null,"",null,null,null,"",null,null,null,"",null,null,null,"",null,null,null,""]
[null,null,null,null,null,"",null,null,null,"",null,null,null,"",null,null,null,"",null,null,null,""]
[null,null,null,null,null,"",null,null,null,"",null,null,null,"",null,null,null,"",null,null,null,""]
[null,null,null,null,null,"",null,null,null,"",null,null,null,"",null,null,null,"",null,null,null,""]
[null,null,null,null,null,"",null,null,null,"",null,null,null,"",null,null,null,"",null,null,null,""]
[null,null,null,null,{"$f":"CONCATENATE(FIXED(COUNTA(E5:E47),0,0),\"　店\")","v":"11　店"},{"$f":"SUM(F5:F47)","v":18850},{"$f":"SUM(G5:G47)","v":0},null,{"$f":"CONCATENATE(FIXED(COUNTA(I5:I47),0,0),\"　店\")","v":"0　店"},{"$f":"SUM(J5:J47)","v":0},{"$f":"SUM(K5:K47)","v":0},null,{"$f":"CONCATENATE(FIXED(COUNTA(M5:M47),0,0),\"　店\")","v":"2　店"},{"$f":"SUM(N5:N47)","v":600},{"$f":"SUM(O5:O47)","v":0},null,{"$f":"CONCATENATE(FIXED(COUNTA(Q5:Q47),0,0),\"　店\")","v":"3　店"},{"$f":"SUM(R5:R47)","v":1000},{"$f":"SUM(S5:S47)","v":0},null,{"$f":"CONCATENATE(FIXED(COUNTA(U5:U47),0,0),\"　店\")","v":"6　店"},{"$f":"SUM(V5:V47)","v":11400},{"$f":"SUM(W5:W47)","v":0},{"$f":"SUM(X5:X47)","v":0}]
["2025年後期（11月1日以降）",null,null,null,null,null,null,null,null,null,null,null,null,null,null,null,null,null,null,null,null,null,null,"㈱中日総合サービス"]

{"sheet":"大垣市・海津市・揖斐郡","index":11,"n_rows":49,"n_cols":24,"rows_kept":49,"cut":false,"hidden":false,"merged":[[0,1,1,4],[0,17,0,20],[0,22,1,23],[1,17,1,20],[0,5,0,6],[0,8,0,14],[1,5,1,6],[1,8,1,14],[2,9,2,10],[3,0,3,1],[3,3,3,5],[3,7,3,9],[3,11,3,13],[37,19,37,21],[3,19,3,21],[23,0,23,1],[23,3,23,5],[23,7,23,9],[23,11,23,13],[23,15,23,17],[23,19,23,21],[3,15,3,17],[37,0,37,1],[37,3,37,5],[37,7,37,9],[37,11,37,13],[37,15,37,17]]}
["折込日",null,null,null,null,"広告主",null,null,null,null,null,null,null,null,null,null,"サイズ",null,null,null,null,"取次店"]
[null,null,null,null,null,"チラシ銘柄",null,null,null,null,null,null,null,null,null,null,"部数",{"$f":"A6+A26+A40","v":0}]
[]
["地区",null,null,"中日新聞",null,null,"枚数","朝日新聞",null,null,"枚数","毎日新聞",null,null,"枚数","読売新聞",null,null,"枚数","岐阜新聞",null,null,"枚数","備考"]
["大垣市",null,null,210210101020,"大垣駅西NS",2200,null,210210202010,"大垣東部",1000,null,null,null,"",null,210210405001,"大垣西部",300,null,210210504020,"大垣東部MS",1750,null,"大垣市全域の場合"]
[{"$f":"SUM(G22,K22,O22,S22,W22)","v":0},{"$f":"SUM(F22,J22,N22,R22,V22)","v":36100},null,210210101010,"大垣N",4950,null,null,null,"",null,null,null,"",null,210210405002,"大垣北部",650,null,210210504030,"大垣西部AMS",2950,null,"不破郡垂井350枚プラス"]
[null,null,null,210210101110,"大垣東部N",1400,null,null,null,"",null,null,null,"",null,210210405004,"大垣",600,null,210210504045,"大垣駅前AMS",2650]
[null,null,null,210210101040,"大垣西部NS",1550,null,null,null,"",null,null,null,"",null,null,null,"",null,210210504050,"大垣赤坂AM",1550]
[null,null,null,210210101060,"大垣中川NAMGS",2050,null,null,null,"",null,null,null,"",null,null,null,"",null,210215504010,"上石津AM",500]
[null,null,"*1",210210101070,"大垣（大迫）NAMGYS",3550,null,null,null,"",null,null,null,"",null,null,null,"",null,null,null,"",null,"*1養老郡養老町"]
[null,null,null,210210101050,"北垣NMGS",3350,null,null,null,"",null,null,null,"",null,null,null,"",null,null,null,"",null,"    1,200枚含む"]
[null,null,null,210210101080,"美濃赤坂NAS",2250,null,null,null,"",null,null,null,"",null,null,null,"",null,null,null,""]
[null,null,"*2",210215101010,"墨俣NAMGS",1950,null,null,null,"",null,null,null,"",null,null,null,"",null,null,null,"",null,"*2安八郡安八町"]
[null,null,null,210215101020,"上石津NYS",900,null,null,null,"",null,null,null,"",null,null,null,"",null,null,null,"",null,"    1,100枚含む"]
[null,null,null,null,null,"",null,null,null,"",null,null,null,"",null,null,null,"",null,null,null,""]
[null,null,null,null,null,"",null,null,null,"",null,null,null,"",null,null,null,"",null,null,null,""]
[null,null,null,null,null,"",null,null,null,"",null,null,null,"",null,null,null,"",null,null,null,""]
[null,null,null,null,null,"",null,null,null,"",null,null,null,"",null,null,null,"",null,null,null,""]
[null,null,null,null,null,"",null,null,null,"",null,null,null,"",null,null,null,"",null,null,null,""]
[null,null,null,null,null,"",null,null,null,"",null,null,null,"",null,null,null,"",null,null,null,""]
[null,null,null,null,null,"",null,null,null,"",null,null,null,"",null,null,null,"",null,null,null,""]
[null,null,null,null,{"$f":"CONCATENATE(FIXED(COUNTA(E5:E21),0,0),\"　店\")","v":"10　店"},{"$f":"SUM(F5:F21)","v":24150},{"$f":"SUM(G5:G21)","v":0},null,{"$f":"CONCATENATE(FIXED(COUNTA(I5:I21),0,0),\"　店\")","v":"1　店"},{"$f":"SUM(J5:J21)","v":1000},{"$f":"SUM(K5:K21)","v":0},null,{"$f":"CONCATENATE(FIXED(COUNTA(M5:M21),0,0),\"　店\")","v":"0　店"},{"$f":"SUM(N5:N21)","v":0},{"$f":"SUM(O5:O21)","v":0},null,{"$f":"CONCATENATE(FIXED(COUNTA(Q5:Q21),0,0),\"　店\")","v":"3　店"},{"$f":"SUM(R5:R21)","v":1550},{"$f":"SUM(S5:S21)","v":0},null,{"$f":"CONCATENATE(FIXED(COUNTA(U5:U21),0,0),\"　店\")","v":"5　店"},{"$f":"SUM(V5:V21)","v":9400},{"$f":"SUM(W5:W21)","v":0},{"$f":"SUM(X5:X21)","v":0}]
[]
["地区",null,null,"中日新聞",null,null,"枚数","朝日新聞",null,null,"枚数","毎日新聞",null,null,"枚数","読売新聞",null,null,"枚数","岐阜新聞",null,null,"枚数","備考"]
["海津市",null,null,210260101010,"海津平田NAMGS",1550,null,null,null,"",null,null,null,"",null,210260405001,"海津",350,null,210260504030,"高須A",650,null,"海津市全域の場合"]
[{"$f":"SUM(G36,K36,O36,S36,W36)","v":0},{"$f":"SUM(F36,J36,N36,R36,V36)","v":7200},null,210260101030,"海津高須NMS",1450,null,null,null,"",null,null,null,"",null,null,null,"",null,null,null,null,null,"養老郡養老450枚プラス"]
[null,null,null,210260101040,"石津NAMGS",2100,null,null,null,"",null,null,null,"",null,null,null,"",null,null,null,""]
[null,null,null,210260101050,"駒野NAMGS",1100,null,null,null,"",null,null,null,"",null,null,null,"",null,null,null,""]
[null,null,null,null,null,"",null,null,null,"",null,null,null,"",null,null,null,"",null,null,null,""]
[null,null,null,null,null,"",null,null,null,"",null,null,null,"",null,null,null,"",null,null,null,""]
[null,null,null,null,null,"",null,null,null,"",null,null,null,"",null,null,null,"",null,null,null,""]
[null,null,null,null,null,"",null,null,null,"",null,null,null,"",null,null,null,"",null,null,null,""]
[null,null,null,null,null,"",null,null,null,"",null,null,null,"",null,null,null,"",null,null,null,""]
[null,null,null,null,null,"",null,null,null,"",null,null,null,"",null,null,null,"",null,null,null,""]
[null,null,null,null,null,"",null,null,null,"",null,null,null,"",null,null,null,"",null,null,null,""]
[null,null,null,null,{"$f":"CONCATENATE(FIXED(COUNTA(E25:E35),0,0),\"　店\")","v":"4　店"},{"$f":"SUM(F25:F35)","v":6200},{"$f":"SUM(G25:G35)","v":0},null,{"$f":"CONCATENATE(FIXED(COUNTA(I25:I35),0,0),\"　店\")","v":"0　店"},{"$f":"SUM(J25:J35)","v":0},{"$f":"SUM(K25:K35)","v":0},null,{"$f":"CONCATENATE(FIXED(COUNTA(M25:M35),0,0),\"　店\")","v":"0　店"},{"$f":"SUM(N25:N35)","v":0},{"$f":"SUM(O25:O35)","v":0},null,{"$f":"CONCATENATE(FIXED(COUNTA(Q25:Q35),0,0),\"　店\")","v":"1　店"},{"$f":"SUM(R25:R35)","v":350},{"$f":"SUM(S25:S35)","v":0},null,{"$f":"CONCATENATE(FIXED(COUNTA(U25:U35),0,0),\"　店\")","v":"1　店"},{"$f":"SUM(V25:V35)","v":650},{"$f":"SUM(W25:W35)","v":0},{"$f":"SUM(X25:X35)","v":0}]
[]
["地区",null,null,"中日新聞",null,null,"枚数","朝日新聞",null,null,"枚数","毎日新聞",null,null,"枚数","読売新聞",null,null,"枚数","岐阜新聞",null,null,"枚数","備考"]
["揖斐郡",null,null,210221101010,"大野黒野NS",2300,null,null,null,"",null,null,null,"",null,210221405001,"揖斐大野",300,null,210221504010,"大野AM",2100]
[{"$f":"SUM(G48,K48,O48,S48,W48)","v":0},{"$f":"SUM(F48,J48,N48,R48,V48)","v":14050},null,210220101030,"大垣池田NAMGS",3900,null,null,null,"",null,null,null,"",null,210220405010,"池田町",100,null,210221504020,"大野西AM",1400]
[null,null,null,210220101040,"揖斐NAMGS",3150,null,null,null,"",null,null,null,"",null,null,null,"",null,210220504010,"池田南AS",800]
[null,null,null,null,null,"",null,null,null,"",null,null,null,"",null,null,null,"",null,null,null,""]
[null,null,null,null,null,"",null,null,null,"",null,null,null,"",null,null,null,"",null,null,null,""]
[null,null,null,null,null,"",null,null,null,"",null,null,null,"",null,null,null,"",null,null,null,""]
[null,null,null,null,null,"",null,null,null,"",null,null,null,"",null,null,null,"",null,null,null,""]
[null,null,null,null,null,"",null,null,null,"",null,null,null,"",null,null,null,"",null,null,null,""]
[null,null,null,null,null,"",null,null,null,"",null,null,null,"",null,null,null,"",null,null,null,""]
[null,null,null,null,{"$f":"CONCATENATE(FIXED(COUNTA(E39:E47),0,0),\"　店\")","v":"3　店"},{"$f":"SUM(F39:F47)","v":9350},{"$f":"SUM(G39:G47)","v":0},null,{"$f":"CONCATENATE(FIXED(COUNTA(I39:I47),0,0),\"　店\")","v":"0　店"},{"$f":"SUM(J39:J47)","v":0},{"$f":"SUM(K39:K47)","v":0},null,{"$f":"CONCATENATE(FIXED(COUNTA(M39:M47),0,0),\"　店\")","v":"0　店"},{"$f":"SUM(N39:N47)","v":0},{"$f":"SUM(O39:O47)","v":0},null,{"$f":"CONCATENATE(FIXED(COUNTA(Q39:Q47),0,0),\"　店\")","v":"2　店"},{"$f":"SUM(R39:R47)","v":400},{"$f":"SUM(S39:S47)","v":0},null,{"$f":"CONCATENATE(FIXED(COUNTA(U39:U47),0,0),\"　店\")","v":"3　店"},{"$f":"SUM(V39:V47)","v":4300},{"$f":"SUM(W39:W47)","v":0},{"$f":"SUM(X39:X47)","v":0}]
["2025年後期（11月1日以降）",null,null,null,null,null,null,null,null,null,null,null,null,null,null,null,null,null,null,null,null,null,null,"㈱中日総合サービス"]

{"sheet":"不破郡・安八郡・養老郡","index":12,"n_rows":49,"n_cols":24,"rows_kept":49,"cut":false,"hidden":false,"merged":[[32,19,32,21],[32,0,32,1],[32,3,32,5],[32,7,32,9],[32,11,32,13],[32,15,32,17],[3,15,3,17],[3,19,3,21],[15,0,15,1],[15,3,15,5],[15,7,15,9],[15,11,15,13],[15,15,15,17],[15,19,15,21],[2,9,2,10],[3,0,3,1],[3,3,3,5],[3,7,3,9],[3,11,3,13],[0,1,1,4],[0,17,0,20],[0,22,1,23],[1,17,1,20],[0,5,0,6],[0,8,0,14],[1,5,1,6],[1,8,1,14]]}
["折込日",null,null,null,null,"広告主",null,null,null,null,null,null,null,null,null,null,"サイズ",null,null,null,null,"取次店"]
[null,null,null,null,null,"チラシ銘柄",null,null,null,null,null,null,null,null,null,null,"部数",{"$f":"A6+A18+A35","v":0}]
[]
["地区",null,null,"中日新聞",null,null,"枚数","朝日新聞",null,null,"枚数","毎日新聞",null,null,"枚数","読売新聞",null,null,"枚数","岐阜新聞",null,null,"枚数","備考"]
["不破郡",null,"*1",210230101010,"垂井NS",2250,null,null,null,"",null,null,null,"",null,210230405020,"垂井",250,null,210230504010,"垂井AM",2650,null,"*1大垣市350枚含む"]
[{"$f":"SUM(G14,K14,O14,S14,W14)","v":0},{"$f":"SUM(F14,J14,N14,R14,V14)","v":8450},"*2",210230101020,"垂井南部NYS",1700,null,null,null,"",null,null,null,"",null,null,null,"",null,null,null,"",null,"*2養老町150枚含む"]
[null,null,null,210230101030,"関ヶ原NAMGS",1600,null,null,null,"",null,null,null,"",null,null,null,"",null,null,null,""]
[null,null,null,null,null,null,null,null,null,"",null,null,null,"",null,null,null,"",null,null,null,""]
[null,null,null,null,null,"",null,null,null,"",null,null,null,"",null,null,null,"",null,null,null,""]
[null,null,null,null,null,"",null,null,null,"",null,null,null,"",null,null,null,"",null,null,null,""]
[null,null,null,null,null,"",null,null,null,"",null,null,null,"",null,null,null,"",null,null,null,""]
[null,null,null,null,null,"",null,null,null,"",null,null,null,"",null,null,null,"",null,null,null,""]
[null,null,null,null,null,"",null,null,null,"",null,null,null,"",null,null,null,"",null,null,null,""]
[null,null,null,null,{"$f":"CONCATENATE(FIXED(COUNTA(E5:E13),0,0),\"　店\")","v":"3　店"},{"$f":"SUM(F5:F13)","v":5550},{"$f":"SUM(G5:G13)","v":0},null,{"$f":"CONCATENATE(FIXED(COUNTA(I5:I13),0,0),\"　店\")","v":"0　店"},{"$f":"SUM(J5:J13)","v":0},{"$f":"SUM(K5:K13)","v":0},null,{"$f":"CONCATENATE(FIXED(COUNTA(M5:M13),0,0),\"　店\")","v":"0　店"},{"$f":"SUM(N5:N13)","v":0},{"$f":"SUM(O5:O13)","v":0},null,{"$f":"CONCATENATE(FIXED(COUNTA(Q5:Q13),0,0),\"　店\")","v":"1　店"},{"$f":"SUM(R5:R13)","v":250},{"$f":"SUM(S5:S13)","v":0},null,{"$f":"CONCATENATE(FIXED(COUNTA(U5:U13),0,0),\"　店\")","v":"1　店"},{"$f":"SUM(V5:V13)","v":2650},{"$f":"SUM(W5:W13)","v":0},{"$f":"SUM(X5:X13)","v":0}]
[]
["地区",null,null,"中日新聞",null,null,"枚数","朝日新聞",null,null,"枚数","毎日新聞",null,null,"枚数","読売新聞",null,null,"枚数","岐阜新聞",null,null,"枚数","備考"]
["安八郡",null,null,210250101030,"広神戸NAMGS",4400,null,null,null,"",null,null,null,"",null,210250405002,"安八",100,null,null,null,"",null,"安八郡全域の場合"]
[{"$f":"SUM(G31,K31,O31,S31,W31)","v":0},{"$f":"SUM(F31,J31,N31,R31,V31)","v":8200},null,210250101040,"安八NAMGS",1700,null,null,null,"",null,null,null,"",null,210250405001,"輪之内",100,null,null,null,"",null,"大垣市墨俣1,100枚"]
[null,null,null,210250101020,"輪之内NAMGS",1900,null,null,null,"",null,null,null,"",null,null,null,"",null,null,null,"",null,"をプラス"]
[null,null,null,null,null,"",null,null,null,"",null,null,null,"",null,null,null,"",null,null,null,""]
[null,null,null,null,null,"",null,null,null,"",null,null,null,"",null,null,null,"",null,null,null,""]
[null,null,null,null,null,"",null,null,null,"",null,null,null,"",null,null,null,"",null,null,null,""]
[null,null,null,null,null,"",null,null,null,"",null,null,null,"",null,null,null,"",null,null,null,""]
[null,null,null,null,null,"",null,null,null,"",null,null,null,"",null,null,null,"",null,null,null,""]
[null,null,null,null,null,"",null,null,null,"",null,null,null,"",null,null,null,"",null,null,null,""]
[null,null,null,null,null,"",null,null,null,"",null,null,null,"",null,null,null,"",null,null,null,""]
[null,null,null,null,null,"",null,null,null,"",null,null,null,"",null,null,null,"",null,null,null,""]
[null,null,null,null,null,"",null,null,null,"",null,null,null,"",null,null,null,"",null,null,null,""]
[null,null,null,null,null,"",null,null,null,"",null,null,null,"",null,null,null,"",null,null,null,""]
[null,null,null,null,null,"",null,null,null,"",null,null,null,"",null,null,null,"",null,null,null,""]
[null,null,null,null,{"$f":"CONCATENATE(FIXED(COUNTA(E17:E30),0,0),\"　店\")","v":"3　店"},{"$f":"SUM(F17:F30)","v":8000},{"$f":"SUM(G17:G30)","v":0},null,{"$f":"CONCATENATE(FIXED(COUNTA(I17:I30),0,0),\"　店\")","v":"0　店"},{"$f":"SUM(J17:J30)","v":0},{"$f":"SUM(K17:K30)","v":0},null,{"$f":"CONCATENATE(FIXED(COUNTA(M17:M30),0,0),\"　店\")","v":"0　店"},{"$f":"SUM(N17:N30)","v":0},{"$f":"SUM(O17:O30)","v":0},null,{"$f":"CONCATENATE(FIXED(COUNTA(Q17:Q30),0,0),\"　店\")","v":"2　店"},{"$f":"SUM(R17:R30)","v":200},{"$f":"SUM(S17:S30)","v":0},null,{"$f":"CONCATENATE(FIXED(COUNTA(U17:U30),0,0),\"　店\")","v":"0　店"},{"$f":"SUM(V17:V30)","v":0},{"$f":"SUM(W17:W30)","v":0},{"$f":"SUM(X20:X30)","v":0}]
[]
["地区",null,null,"中日新聞",null,null,"枚数","朝日新聞",null,null,"枚数","毎日新聞",null,null,"枚数","読売新聞",null,null,"枚数","岐阜新聞",null,null,"枚数","備考"]
["養老郡",null,null,210240101010,"美濃高田NYS",2300,null,null,null,"",null,null,null,"",null,null,null,"",null,210240504010,"高田AM",2150,null,"養老郡全域の場合"]
[{"$f":"SUM(G48,K48,O48,S48,W48)","v":0},{"$f":"SUM(F48,J48,N48,R48,V48)","v":6500},"*3",210240101020,"養老NAMYGS",1650,null,null,null,"",null,null,null,"",null,null,null,"",null,210240504020,"栗笠M",400,null,"大垣市大垣(大迫)"]
[null,null,null,null,null,"",null,null,null,"",null,null,null,"",null,null,null,"",null,null,null,"",null,"1,200枚"]
[null,null,null,null,null,"",null,null,null,"",null,null,null,"",null,null,null,"",null,null,null,"",null,"不破郡垂井南部"]
[null,null,null,null,null,"",null,null,null,"",null,null,null,"",null,null,null,"",null,null,null,"",null,"150枚"]
[null,null,null,null,null,"",null,null,null,"",null,null,null,"",null,null,null,"",null,null,null,"",null,"をプラス"]
[null,null,null,null,null,"",null,null,null,"",null,null,null,"",null,null,null,"",null,null,null,""]
[null,null,null,null,null,"",null,null,null,"",null,null,null,"",null,null,null,"",null,null,null,"",null,"*3海津市450枚含む"]
[null,null,null,null,null,"",null,null,null,"",null,null,null,"",null,null,null,"",null,null,null,""]
[null,null,null,null,null,"",null,null,null,"",null,null,null,"",null,null,null,"",null,null,null,""]
[null,null,null,null,null,"",null,null,null,"",null,null,null,"",null,null,null,"",null,null,null,""]
[null,null,null,null,null,"",null,null,null,"",null,null,null,"",null,null,null,"",null,null,null,""]
[null,null,null,null,null,"",null,null,null,"",null,null,null,"",null,null,null,"",null,null,null,""]
[null,null,null,null,null,"",null,null,null,"",null,null,null,"",null,null,null,"",null,null,null,""]
[null,null,null,null,{"$f":"CONCATENATE(FIXED(COUNTA(E34:E47),0,0),\"　店\")","v":"2　店"},{"$f":"SUM(F34:F47)","v":3950},{"$f":"SUM(G34:G47)","v":0},null,{"$f":"CONCATENATE(FIXED(COUNTA(I34:I47),0,0),\"　店\")","v":"0　店"},{"$f":"SUM(J34:J47)","v":0},{"$f":"SUM(K34:K47)","v":0},null,{"$f":"CONCATENATE(FIXED(COUNTA(M34:M47),0,0),\"　店\")","v":"0　店"},{"$f":"SUM(N34:N47)","v":0},{"$f":"SUM(O34:O47)","v":0},null,{"$f":"CONCATENATE(FIXED(COUNTA(Q34:Q47),0,0),\"　店\")","v":"0　店"},{"$f":"SUM(R34:R47)","v":0},{"$f":"SUM(S34:S47)","v":0},null,{"$f":"CONCATENATE(FIXED(COUNTA(U34:U47),0,0),\"　店\")","v":"2　店"},{"$f":"SUM(V34:V47)","v":2550},{"$f":"SUM(W34:W47)","v":0},{"$f":"SUM(X34:X47)","v":0}]
["2025年後期（11月1日以降）",null,null,null,null,null,null,null,null,null,null,null,null,null,null,null,null,null,null,null,null,null,null,"㈱中日総合サービス"]

{"sheet":"美濃加茂市・加茂郡","index":13,"n_rows":49,"n_cols":24,"rows_kept":49,"cut":false,"hidden":false,"merged":[[0,1,1,4],[0,17,0,20],[0,22,1,23],[1,17,1,20],[0,5,0,6],[0,8,0,14],[1,5,1,6],[1,8,1,14],[2,9,2,10],[3,0,3,1],[3,3,3,5],[3,7,3,9],[3,11,3,13],[3,19,3,21],[22,0,22,1],[22,3,22,5],[22,7,22,9],[22,11,22,13],[22,15,22,17],[22,19,22,21],[3,15,3,17]]}
["折込日",null,null,null,null,"広告主",null,null,null,null,null,null,null,null,null,null,"サイズ",null,null,null,null,"取次店"]
[null,null,null,null,null,"チラシ銘柄",null,null,null,null,null,null,null,null,null,null,"部数",{"$f":"A6+A25","v":0}]
[]
["地区",null,null,"中日新聞",null,null,"枚数","朝日新聞",null,null,"枚数","毎日新聞",null,null,"枚数","読売新聞",null,null,"枚数","岐阜新聞",null,null,"枚数","備考"]
["美濃加茂市",null,null,210320101010,"美濃太田NS",1550,null,null,null,"",null,null,null,"",null,210320405001,"美濃加茂",800,null,210320504010,"美濃加茂AMS",1650,null,"美濃加茂市全域の場合"]
[{"$f":"SUM(G21,K21,O21,S21,W21)","v":0},{"$f":"SUM(F21,J21,N21,R21,V21)","v":10050},null,210320101050,"美濃加茂NAMGS",2950,null,null,null,"",null,null,null,"",null,null,null,"",null,null,null,"",null,"加茂郡加茂野800枚"]
[null,null,null,210320101040,"古井NAMGS",3100,null,null,null,"",null,null,null,"",null,null,null,"",null,null,null,"",null,"をプラス"]
[null,null,null,null,null,"",null,null,null,"",null,null,null,"",null,null,null,"",null,null,null,""]
[null,null,null,null,null,"",null,null,null,"",null,null,null,"",null,null,null,"",null,null,null,""]
[null,null,null,null,null,"",null,null,null,"",null,null,null,"",null,null,null,"",null,null,null,""]
[null,null,null,null,null,"",null,null,null,"",null,null,null,"",null,null,null,"",null,null,null,""]
[null,null,null,null,null,"",null,null,null,"",null,null,null,"",null,null,null,"",null,null,null,""]
[null,null,null,null,null,"",null,null,null,"",null,null,null,"",null,null,null,"",null,null,null,""]
[null,null,null,null,null,"",null,null,null,"",null,null,null,"",null,null,null,"",null,null,null,""]
[null,null,null,null,null,"",null,null,null,"",null,null,null,"",null,null,null,"",null,null,null,""]
[null,null,null,null,null,"",null,null,null,"",null,null,null,"",null,null,null,"",null,null,null,""]
[null,null,null,null,null,"",null,null,null,"",null,null,null,"",null,null,null,"",null,null,null,""]
[null,null,null,null,null,"",null,null,null,"",null,null,null,"",null,null,null,"",null,null,null,""]
[null,null,null,null,null,"",null,null,null,"",null,null,null,"",null,null,null,"",null,null,null,""]
[null,null,null,null,null,"",null,null,null,"",null,null,null,"",null,null,null,"",null,null,null,""]
[null,null,null,null,{"$f":"CONCATENATE(FIXED(COUNTA(E5:E20),0,0),\"　店\")","v":"3　店"},{"$f":"SUM(F5:F20)","v":7600},{"$f":"SUM(G5:G20)","v":0},null,{"$f":"CONCATENATE(FIXED(COUNTA(I5:I20),0,0),\"　店\")","v":"0　店"},{"$f":"SUM(J5:J20)","v":0},{"$f":"SUM(K5:K20)","v":0},null,{"$f":"CONCATENATE(FIXED(COUNTA(M5:M20),0,0),\"　店\")","v":"0　店"},{"$f":"SUM(N5:N20)","v":0},{"$f":"SUM(O5:O20)","v":0},null,{"$f":"CONCATENATE(FIXED(COUNTA(Q5:Q20),0,0),\"　店\")","v":"1　店"},{"$f":"SUM(R5:R20)","v":800},{"$f":"SUM(S5:S20)","v":0},null,{"$f":"CONCATENATE(FIXED(COUNTA(U5:U20),0,0),\"　店\")","v":"1　店"},{"$f":"SUM(V5:V20)","v":1650},{"$f":"SUM(W5:W20)","v":0},{"$f":"SUM(X5:X20)","v":0}]
[]
["地区",null,null,"中日新聞",null,null,"枚数","朝日新聞",null,null,"枚数","毎日新聞",null,null,"枚数","読売新聞",null,null,"枚数","岐阜新聞",null,null,"枚数","備考"]
["加茂郡",null,"*1",210340101011,"川辺NAMGY",2100,null,null,null,"",null,null,null,"",null,210340405003,"七宗",100,null,210340504020,"坂祝AM",550,null,"*1八百津町150枚含む"]
[{"$f":"SUM(G48,K48,O48,S48,W48)","v":0},{"$f":"SUM(F48,J48,N48,R48,V48)","v":12150},null,210340101020,"坂祝NS",1100,null,null,null,"",null,null,null,"",null,null,null,"",null,null,null,"",null,"*2美濃加茂市800枚"]
[null,null,"*2",210340101030,"加茂野NAMGYS",2500,null,null,null,"",null,null,null,"",null,null,null,"",null,null,null,"",null,"   川辺町300枚含む"]
[null,null,null,210340101140,"白川口NAMG",700,null,null,null,"",null,null,null,"",null,null,null,"",null,null,null,""]
[null,null,null,210340101080,"切井AMG",200,null,null,null,"",null,null,null,"",null,null,null,"",null,null,null,""]
[null,null,null,210340101090,"黒川NAMG",500,null,null,null,"",null,null,null,"",null,null,null,"",null,null,null,""]
[null,null,null,210340101110,"赤河NAMG",400,null,null,null,"",null,null,null,"",null,null,null,"",null,null,null,""]
[null,null,null,210340101120,"下油井NAMG",350,null,null,null,"",null,null,null,"",null,null,null,"",null,null,null,"",null,"    "]
[null,null,null,210340101130,"佐見NAMGS",300,null,null,null,"",null,null,null,"",null,null,null,"",null,null,null,""]
[null,null,null,210340101040,"神土NAMGS",650,null,null,null,"",null,null,null,"",null,null,null,"",null,null,null,""]
[null,null,null,210340101070,"七宗NAMG",800,null,null,null,"",null,null,null,"",null,null,null,"",null,null,null,""]
[null,null,null,210340101050,"八百津NAMGYS",1900,null,null,null,"",null,null,null,"",null,null,null,"",null,null,null,""]
[null,null,null,null,null,"",null,null,null,"",null,null,null,"",null,null,null,"",null,null,null,""]
[null,null,null,null,null,"",null,null,null,"",null,null,null,"",null,null,null,"",null,null,null,""]
[null,null,null,null,null,"",null,null,null,"",null,null,null,"",null,null,null,"",null,null,null,""]
[null,null,null,null,null,"",null,null,null,"",null,null,null,"",null,null,null,"",null,null,null,""]
[null,null,null,null,null,"",null,null,null,"",null,null,null,"",null,null,null,"",null,null,null,""]
[null,null,null,null,null,"",null,null,null,"",null,null,null,"",null,null,null,"",null,null,null,""]
[null,null,null,null,null,"",null,null,null,"",null,null,null,"",null,null,null,"",null,null,null,""]
[null,null,null,null,null,"",null,null,null,"",null,null,null,"",null,null,null,"",null,null,null,""]
[null,null,null,null,null,"",null,null,null,"",null,null,null,"",null,null,null,"",null,null,null,""]
[null,null,null,null,null,"",null,null,null,"",null,null,null,"",null,null,null,"",null,null,null,""]
[null,null,null,null,null,"",null,null,null,"",null,null,null,"",null,null,null,"",null,null,null,""]
[null,null,null,null,null,"",null,null,null,"",null,null,null,"",null,null,null,"",null,null,null,""]
[null,null,null,null,{"$f":"CONCATENATE(FIXED(COUNTA(E24:E47),0,0),\"　店\")","v":"12　店"},{"$f":"SUM(F24:F47)","v":11500},{"$f":"SUM(G24:G47)","v":0},null,{"$f":"CONCATENATE(FIXED(COUNTA(I24:I47),0,0),\"　店\")","v":"0　店"},{"$f":"SUM(J24:J47)","v":0},{"$f":"SUM(K24:K47)","v":0},null,{"$f":"CONCATENATE(FIXED(COUNTA(M24:M47),0,0),\"　店\")","v":"0　店"},{"$f":"SUM(N24:N47)","v":0},{"$f":"SUM(O24:O47)","v":0},null,{"$f":"CONCATENATE(FIXED(COUNTA(Q24:Q47),0,0),\"　店\")","v":"1　店"},{"$f":"SUM(R24:R47)","v":100},{"$f":"SUM(S24:S47)","v":0},null,{"$f":"CONCATENATE(FIXED(COUNTA(U24:U47),0,0),\"　店\")","v":"1　店"},{"$f":"SUM(V24:V47)","v":550},{"$f":"SUM(W24:W47)","v":0},{"$f":"SUM(X24:X47)","v":0}]
["2025年後期（11月1日以降）",null,null,null,null,null,null,null,null,null,null,null,null,null,null,null,null,null,null,null,null,null,null,"㈱中日総合サービス"]

{"sheet":"美濃市・関市・郡上市","index":14,"n_rows":49,"n_cols":24,"rows_kept":49,"cut":false,"hidden":false,"merged":[[32,19,32,21],[32,0,32,1],[32,3,32,5],[32,7,32,9],[32,11,32,13],[32,15,32,17],[3,15,3,17],[3,19,3,21],[15,0,15,1],[15,3,15,5],[15,7,15,9],[15,11,15,13],[15,15,15,17],[15,19,15,21],[2,9,2,10],[3,0,3,1],[3,3,3,5],[3,7,3,9],[3,11,3,13],[0,1,1,4],[0,17,0,20],[0,22,1,23],[1,17,1,20],[0,5,0,6],[0,8,0,14],[1,5,1,6],[1,8,1,14]]}
["折込日",null,null,null,null,"広告主",null,null,null,null,null,null,null,null,null,null,"サイズ",null,null,null,null,"取次店"]
[null,null,null,null,null,"チラシ銘柄",null,null,null,null,null,null,null,null,null,null,"部数",{"$f":"A6+A18+A35","v":0}]
[]
["地区",null,null,"中日新聞",null,null,"枚数","朝日新聞",null,null,"枚数","毎日新聞",null,null,"枚数","読売新聞",null,null,"枚数","岐阜新聞",null,null,"枚数","備考"]
["美濃市",null,null,210310101010,"美濃市NAMGYS",2100,null,null,null,"",null,null,null,"",null,null,null,"",null,210310504020,"牧谷AM",700,null,"美濃市全域の場合"]
[{"$f":"SUM(G14,K14,O14,S14,W14)","v":0},{"$f":"SUM(F14,J14,N14,R14,V14)","v":4250},null,210310101020,"牧谷NAMGYS",1450,null,null,null,"",null,null,null,"",null,null,null,"",null,null,null,"",null,"関市関小瀬800枚"]
[null,null,null,null,null,"",null,null,null,"",null,null,null,"",null,null,null,"",null,null,null,"",null,"をプラス"]
[null,null,null,null,null,"",null,null,null,"",null,null,null,"",null,null,null,"",null,null,null,""]
[null,null,null,null,null,"",null,null,null,"",null,null,null,"",null,null,null,"",null,null,null,""]
[null,null,null,null,null,"",null,null,null,"",null,null,null,"",null,null,null,"",null,null,null,""]
[null,null,null,null,null,"",null,null,null,"",null,null,null,"",null,null,null,"",null,null,null,""]
[null,null,null,null,null,"",null,null,null,"",null,null,null,"",null,null,null,"",null,null,null,""]
[null,null,null,null,null,"",null,null,null,"",null,null,null,"",null,null,null,"",null,null,null,""]
[null,null,null,null,{"$f":"CONCATENATE(FIXED(COUNTA(E5:E13),0,0),\"　店\")","v":"2　店"},{"$f":"SUM(F5:F13)","v":3550},{"$f":"SUM(G5:G13)","v":0},null,{"$f":"CONCATENATE(FIXED(COUNTA(I5:I13),0,0),\"　店\")","v":"0　店"},{"$f":"SUM(J5:J13)","v":0},{"$f":"SUM(K5:K13)","v":0},null,{"$f":"CONCATENATE(FIXED(COUNTA(M5:M13),0,0),\"　店\")","v":"0　店"},{"$f":"SUM(N5:N13)","v":0},{"$f":"SUM(O5:O13)","v":0},null,{"$f":"CONCATENATE(FIXED(COUNTA(Q5:Q13),0,0),\"　店\")","v":"0　店"},{"$f":"SUM(R5:R13)","v":0},{"$f":"SUM(S5:S13)","v":0},null,{"$f":"CONCATENATE(FIXED(COUNTA(U5:U13),0,0),\"　店\")","v":"1　店"},{"$f":"SUM(V5:V13)","v":700},{"$f":"SUM(W5:W13)","v":0},{"$f":"SUM(X5:X13)","v":0}]
[]
["地区",null,null,"中日新聞",null,null,"枚数","朝日新聞",null,null,"枚数","毎日新聞",null,null,"枚数","読売新聞",null,null,"枚数","岐阜新聞",null,null,"枚数","備考"]
["関市",null,null,210330101010,"関N",2350,null,null,null,"",null,null,null,"",null,210330405001,"関",400,null,210330504020,"関南部AMS",2000,null,"関市全域の場合"]
[{"$f":"SUM(G31,K31,O31,S31,W31)","v":0},{"$f":"SUM(F31,J31,N31,R31,V31)","v":20500},null,210330101030,"関西部N",1700,null,null,null,"",null,null,null,"",null,210350405001,"洞戸",50,null,210330504030,"関東部AMS",1150,null,"岐阜市藍川橋1,200枚"]
[null,null,"※1",210330101031,"関小瀬NAMYGS",1400,null,null,null,"",null,null,null,"",null,null,null,"",null,210330504040,"小金田NAMS",2400,null,"をプラス"]
[null,null,null,210330101020,"関東部N",1950,null,null,null,"",null,null,null,"",null,null,null,"",null,210330504090,"関北部AMS",1350,null,"※1美濃市800枚を含む"]
[null,null,null,210330101050,"関南部N",1550,null,null,null,"",null,null,null,"",null,null,null,"",null,210330504060,"関武芸川CNAMS",1300]
[null,null,null,210330101060,"関富野NAMG",500,null,null,null,"",null,null,null,"",null,null,null,"",null,210330504085,"上之保CNAM",650]
[null,null,null,210330101070,"中之保（下之保）NAMG",850,null,null,null,"",null,null,null,"",null,null,null,"",null,210350504010,"洞戸CNAM",900]
[null,null,null,null,null,"",null,null,null,"",null,null,null,"",null,null,null,"",null,null,null,""]
[null,null,null,null,null,"",null,null,null,"",null,null,null,"",null,null,null,"",null,null,null,""]
[null,null,null,null,null,"",null,null,null,"",null,null,null,"",null,null,null,"",null,null,null,""]
[null,null,null,null,null,"",null,null,null,"",null,null,null,"",null,null,null,"",null,null,null,""]
[null,null,null,null,null,"",null,null,null,"",null,null,null,"",null,null,null,"",null,null,null,""]
[null,null,null,null,null,"",null,null,null,"",null,null,null,"",null,null,null,"",null,null,null,""]
[null,null,null,null,null,"",null,null,null,"",null,null,null,"",null,null,null,"",null,null,null,""]
[null,null,null,null,{"$f":"CONCATENATE(FIXED(COUNTA(E17:E30),0,0),\"　店\")","v":"7　店"},{"$f":"SUM(F17:F30)","v":10300},{"$f":"SUM(G17:G30)","v":0},null,{"$f":"CONCATENATE(FIXED(COUNTA(I17:I30),0,0),\"　店\")","v":"0　店"},{"$f":"SUM(J17:J30)","v":0},{"$f":"SUM(K17:K30)","v":0},null,{"$f":"CONCATENATE(FIXED(COUNTA(M17:M30),0,0),\"　店\")","v":"0　店"},{"$f":"SUM(N17:N30)","v":0},{"$f":"SUM(O17:O30)","v":0},null,{"$f":"CONCATENATE(FIXED(COUNTA(Q17:Q30),0,0),\"　店\")","v":"2　店"},{"$f":"SUM(R17:R30)","v":450},{"$f":"SUM(S17:S30)","v":0},null,{"$f":"CONCATENATE(FIXED(COUNTA(U17:U30),0,0),\"　店\")","v":"7　店"},{"$f":"SUM(V17:V30)","v":9750},{"$f":"SUM(W17:W30)","v":0},{"$f":"SUM(X20:X30)","v":0}]
[]
["地区",null,null,"中日新聞",null,null,"枚数","朝日新聞",null,null,"枚数","毎日新聞",null,null,"枚数","読売新聞",null,null,"枚数","岐阜新聞",null,null,"枚数","備考"]
["郡上市",null,null,210360101010,"郡上八幡NMS",2000,null,null,null,"",null,null,null,"",null,210360405001,"郡上八幡",50,null,210360504010,"郡上八幡A",1300,null,"*1月曜日折込不可"]
[{"$f":"SUM(G48,K48,O48,S48,W48)","v":0},{"$f":"SUM(F48,J48,N48,R48,V48)","v":9350},null,210360101025,"郡上大和NAMG",1200,null,null,null,"",null,null,null,"",null,null,null,"",null,null,null,"",null,"    大野郡白川村･"]
[null,null,null,210360101040,"美並NAMGS",850,null,null,null,"",null,null,null,"",null,null,null,"",null,null,null,"",null,"    高山市（旧荘川村）"]
[null,null,null,210360101050,"相生NAMG",450,null,null,null,"",null,null,null,"",null,null,null,"",null,null,null,"",null,"    を含む"]
[null,null,null,210370101020,"白鳥NAMGS",2100,null,null,null,"",null,null,null,"",null,null,null,"",null,null,null,""]
[null,null,"*1",210370101030,"正ヶ洞NAMG",850,null,null,null,"",null,null,null,"",null,null,null,"",null,null,null,""]
[null,null,null,210370101040,"和良NAMGY",550,null,null,null,"",null,null,null,"",null,null,null,"",null,null,null,""]
[null,null,null,null,null,"",null,null,null,"",null,null,null,"",null,null,null,"",null,null,null,""]
[null,null,null,null,null,"",null,null,null,"",null,null,null,"",null,null,null,"",null,null,null,""]
[null,null,null,null,null,"",null,null,null,"",null,null,null,"",null,null,null,"",null,null,null,""]
[null,null,null,null,null,"",null,null,null,"",null,null,null,"",null,null,null,"",null,null,null,""]
[null,null,null,null,null,"",null,null,null,"",null,null,null,"",null,null,null,"",null,null,null,""]
[null,null,null,null,null,"",null,null,null,"",null,null,null,"",null,null,null,"",null,null,null,""]
[null,null,null,null,null,"",null,null,null,"",null,null,null,"",null,null,null,"",null,null,null,""]
[null,null,null,null,{"$f":"CONCATENATE(FIXED(COUNTA(E34:E47),0,0),\"　店\")","v":"7　店"},{"$f":"SUM(F34:F47)","v":8000},{"$f":"SUM(G34:G47)","v":0},null,{"$f":"CONCATENATE(FIXED(COUNTA(I34:I47),0,0),\"　店\")","v":"0　店"},{"$f":"SUM(J34:J47)","v":0},{"$f":"SUM(K34:K47)","v":0},null,{"$f":"CONCATENATE(FIXED(COUNTA(M34:M47),0,0),\"　店\")","v":"0　店"},{"$f":"SUM(N34:N47)","v":0},{"$f":"SUM(O34:O47)","v":0},null,{"$f":"CONCATENATE(FIXED(COUNTA(Q34:Q47),0,0),\"　店\")","v":"1　店"},{"$f":"SUM(R34:R47)","v":50},{"$f":"SUM(S34:S47)","v":0},null,{"$f":"CONCATENATE(FIXED(COUNTA(U34:U47),0,0),\"　店\")","v":"1　店"},{"$f":"SUM(V34:V47)","v":1300},{"$f":"SUM(W34:W47)","v":0},{"$f":"SUM(X34:X47)","v":0}]
["2025年後期（11月1日以降）",null,null,null,null,null,null,null,null,null,null,null,null,null,null,null,null,null,null,null,null,null,null,"㈱中日総合サービス"]

{"sheet":"可児市・可児郡・多治見市","index":15,"n_rows":49,"n_cols":24,"rows_kept":49,"cut":false,"hidden":false,"merged":[[27,19,27,21],[27,0,27,1],[27,3,27,5],[27,7,27,9],[27,11,27,13],[27,15,27,17],[3,15,3,17],[3,19,3,21],[17,0,17,1],[17,3,17,5],[17,7,17,9],[17,11,17,13],[17,15,17,17],[17,19,17,21],[2,9,2,10],[3,0,3,1],[3,3,3,5],[3,7,3,9],[3,11,3,13],[0,1,1,4],[0,17,0,20],[0,22,1,23],[1,17,1,20],[0,5,0,6],[0,8,0,14],[1,5,1,6],[1,8,1,14]]}
["折込日",null,null,null,null,"広告主",null,null,null,null,null,null,null,null,null,null,"サイズ",null,null,null,null,"取次店"]
[null,null,null,null,null,"チラシ銘柄",null,null,null,null,null,null,null,null,null,null,"部数",{"$f":"A6+A20+A30","v":0}]
[]
["地区",null,null,"中日新聞",null,null,"枚数","朝日新聞",null,null,"枚数","毎日新聞",null,null,"枚数","読売新聞",null,null,"枚数","岐阜新聞",null,null,"枚数","備考"]
["可児市",null,null,210440101010,"広見NMS",3300,null,210440204010,"新可児・桜ケ丘G",1250,null,null,null,"",null,210440405001,"可児中央",550,null,210440504050,"兼山A",200,null,"可児市全域の場合"]
[{"$f":"SUM(G16,K16,O16,S16,W16)","v":0},{"$f":"SUM(F16,J16,N16,R16,V16)","v":19150},null,210440101020,"今渡NMS",4000,null,210440204020,"今渡G",950,null,null,null,"",null,210440405002,"西可児",800,null,null,null,"",null,"多治見市桜ヶ丘1,400枚"]
[null,null,null,210440101030,"西可児NMS",1950,null,210440204030,"可児西部G",950,null,null,null,"",null,null,null,"",null,null,null,"",null,"多治見市姫650枚"]
[null,null,null,210440101040,"春里NMS",2100,null,210440202020,"伏見G",250,null,null,null,"",null,null,null,"",null,null,null,"",null,"をプラス"]
[null,null,"*1",210440101011,"下切NMS",1150,null,null,null,"",null,null,null,"",null,null,null,"",null,null,null,""]
[null,null,"*2",210440101050,"伏見兼山NAMGYS",1700,null,null,null,"",null,null,null,"",null,null,null,"",null,null,null,"",null,"*1多治見市250枚含む"]
[null,null,null,null,null,"",null,null,null,"",null,null,null,"",null,null,null,"",null,null,null,"",null,"*2八百津町300枚含む"]
[null,null,null,null,null,"",null,null,null,"",null,null,null,"",null,null,null,"",null,null,null,""]
[null,null,null,null,null,"",null,null,null,"",null,null,null,"",null,null,null,"",null,null,null,""]
[null,null,null,null,null,"",null,null,null,"",null,null,null,"",null,null,null,"",null,null,null,""]
[null,null,null,null,null,"",null,null,null,"",null,null,null,"",null,null,null,"",null,null,null,""]
[null,null,null,null,{"$f":"CONCATENATE(FIXED(COUNTA(E5:E15),0,0),\"　店\")","v":"6　店"},{"$f":"SUM(F5:F15)","v":14200},{"$f":"SUM(G5:G15)","v":0},null,{"$f":"CONCATENATE(FIXED(COUNTA(I5:I15),0,0),\"　店\")","v":"4　店"},{"$f":"SUM(J5:J15)","v":3400},{"$f":"SUM(K5:K15)","v":0},null,{"$f":"CONCATENATE(FIXED(COUNTA(M5:M15),0,0),\"　店\")","v":"0　店"},{"$f":"SUM(N5:N15)","v":0},{"$f":"SUM(O5:O15)","v":0},null,{"$f":"CONCATENATE(FIXED(COUNTA(Q5:Q15),0,0),\"　店\")","v":"2　店"},{"$f":"SUM(R5:R15)","v":1350},{"$f":"SUM(S5:S15)","v":0},null,{"$f":"CONCATENATE(FIXED(COUNTA(U5:U15),0,0),\"　店\")","v":"1　店"},{"$f":"SUM(V5:V15)","v":200},{"$f":"SUM(W5:W15)","v":0},{"$f":"SUM(X5:X15)","v":0}]
[]
["地区",null,null,"中日新聞",null,null,"枚数","朝日新聞",null,null,"枚数","毎日新聞",null,null,"枚数","読売新聞",null,null,"枚数","岐阜新聞",null,null,"枚数","備考"]
["可児郡",null,null,210460101010,"御嵩NAMGS",2250,null,null,null,"",null,null,null,"",null,null,null,"",null,null,null,""]
[{"$f":"SUM(G26,K26,O26,S26,W26)","v":0},{"$f":"SUM(F26,J26,N26,R26,V26)","v":2250},null,null,null,"",null,null,null,"",null,null,null,"",null,null,null,"",null,null,null,""]
[null,null,null,null,null,"",null,null,null,"",null,null,null,"",null,null,null,"",null,null,null,""]
[null,null,null,null,null,"",null,null,null,"",null,null,null,"",null,null,null,"",null,null,null,""]
[null,null,null,null,null,"",null,null,null,"",null,null,null,"",null,null,null,"",null,null,null,""]
[null,null,null,null,null,"",null,null,null,"",null,null,null,"",null,null,null,"",null,null,null,""]
[null,null,null,null,null,"",null,null,null,"",null,null,null,"",null,null,null,"",null,null,null,""]
[null,null,null,null,{"$f":"CONCATENATE(FIXED(COUNTA(E19:E25),0,0),\"　店\")","v":"1　店"},{"$f":"SUM(F19:F25)","v":2250},{"$f":"SUM(G19:G25)","v":0},null,{"$f":"CONCATENATE(FIXED(COUNTA(I19:I25),0,0),\"　店\")","v":"0　店"},{"$f":"SUM(J19:J25)","v":0},{"$f":"SUM(K19:K25)","v":0},null,{"$f":"CONCATENATE(FIXED(COUNTA(M19:M25),0,0),\"　店\")","v":"0　店"},{"$f":"SUM(N19:N25)","v":0},{"$f":"SUM(O19:O25)","v":0},null,{"$f":"CONCATENATE(FIXED(COUNTA(Q19:Q25),0,0),\"　店\")","v":"0　店"},{"$f":"SUM(R19:R25)","v":0},{"$f":"SUM(S19:S25)","v":0},null,{"$f":"CONCATENATE(FIXED(COUNTA(U19:U25),0,0),\"　店\")","v":"0　店"},{"$f":"SUM(V19:V25)","v":0},{"$f":"SUM(W19:W25)","v":0},{"$f":"SUM(X19:X25)","v":0}]
[]
["地区",null,null,"中日新聞",null,null,"枚数","朝日新聞",null,null,"枚数","毎日新聞",null,null,"枚数","読売新聞",null,null,"枚数","岐阜新聞",null,null,"枚数","備考"]
["多治見市",null,"*1",210410101010,"多治見（両藤舎）NAMGS",7150,null,210410202020,"多治見南部G",600,null,null,null,"",null,210410405002,"多治見",1050,null,null,null,"",null,"多治見市全域の場合"]
[{"$f":"SUM(G48,K48,O48,S48,W48)","v":0},{"$f":"SUM(F48,J48,N48,R48,V48)","v":25850},null,210410101020,"多治見東部NM",1550,null,210410202050,"多治見ホワイトタウンG",300,null,null,null,"",null,210410405003,"多治見北",400,null,null,null,"",null,"可児市下切250枚"]
[null,null,null,210410101030,"多治見西部NMS",1350,null,210410204020,"多治見G",2100,null,null,null,"",null,null,null,"",null,null,null,"",null,"をプラス"]
[null,null,null,210410101040,"多治見池田NMS",1250,null,null,null,"",null,null,null,"",null,null,null,"",null,null,null,""]
[null,null,null,210410101050,"小泉NMS",3000,null,null,null,"",null,null,null,"",null,null,null,"",null,null,null,"",null,"*1土岐市300枚"]
[null,null,null,210410101060,"北栄NM",850,null,null,null,"",null,null,null,"",null,null,null,"",null,null,null,"",null,"   瀬戸市100枚含む"]
[null,null,null,210410101080,"多治見脇之島NM",1300,null,null,null,"",null,null,null,"",null,null,null,"",null,null,null,""]
[null,null,"*2",210410101090,"多治見姫NMS",1200,null,null,null,"",null,null,null,"",null,null,null,"",null,null,null,"",null,"*2可児市650枚含む"]
[null,null,"*3",210410101070,"多治見桜ヶ丘NMS",1850,null,null,null,"",null,null,null,"",null,null,null,"",null,null,null,"",null,"*3可児市1,400枚含む"]
[null,null,null,210410101100,"笠原NAMGS",1900,null,null,null,"",null,null,null,"",null,null,null,"",null,null,null,""]
[null,null,null,null,null,"",null,null,null,"",null,null,null,"",null,null,null,"",null,null,null,""]
[null,null,null,null,null,"",null,null,null,"",null,null,null,"",null,null,null,"",null,null,null,""]
[null,null,null,null,null,"",null,null,null,"",null,null,null,"",null,null,null,"",null,null,null,""]
[null,null,null,null,null,"",null,null,null,"",null,null,null,"",null,null,null,"",null,null,null,""]
[null,null,null,null,null,"",null,null,null,"",null,null,null,"",null,null,null,"",null,null,null,""]
[null,null,null,null,null,"",null,null,null,"",null,null,null,"",null,null,null,"",null,null,null,""]
[null,null,null,null,null,"",null,null,null,"",null,null,null,"",null,null,null,"",null,null,null,""]
[null,null,null,null,null,"",null,null,null,"",null,null,null,"",null,null,null,"",null,null,null,""]
[null,null,null,null,null,"",null,null,null,"",null,null,null,"",null,null,null,"",null,null,null,""]
[null,null,null,null,{"$f":"CONCATENATE(FIXED(COUNTA(E29:E47),0,0),\"　店\")","v":"10　店"},{"$f":"SUM(F29:F47)","v":21400},{"$f":"SUM(G29:G47)","v":0},null,{"$f":"CONCATENATE(FIXED(COUNTA(I29:I47),0,0),\"　店\")","v":"3　店"},{"$f":"SUM(J29:J47)","v":3000},{"$f":"SUM(K29:K47)","v":0},null,{"$f":"CONCATENATE(FIXED(COUNTA(M29:M47),0,0),\"　店\")","v":"0　店"},{"$f":"SUM(N29:N47)","v":0},{"$f":"SUM(O29:O47)","v":0},null,{"$f":"CONCATENATE(FIXED(COUNTA(Q29:Q47),0,0),\"　店\")","v":"2　店"},{"$f":"SUM(R29:R47)","v":1450},{"$f":"SUM(S29:S47)","v":0},null,{"$f":"CONCATENATE(FIXED(COUNTA(U29:U47),0,0),\"　店\")","v":"0　店"},{"$f":"SUM(V29:V47)","v":0},{"$f":"SUM(W29:W47)","v":0},{"$f":"SUM(X29:X47)","v":0}]
["2025年後期（11月1日以降）",null,null,null,null,null,null,null,null,null,null,null,null,null,null,null,null,null,null,null,null,null,null,"㈱中日総合サービス"]

{"sheet":"土岐市・瑞浪市・恵那市","index":16,"n_rows":49,"n_cols":24,"rows_kept":49,"cut":false,"hidden":false,"merged":[[28,19,28,21],[28,0,28,1],[28,3,28,5],[28,7,28,9],[28,11,28,13],[28,15,28,17],[3,15,3,17],[3,19,3,21],[15,0,15,1],[15,3,15,5],[15,7,15,9],[15,11,15,13],[15,15,15,17],[15,19,15,21],[2,9,2,10],[3,0,3,1],[3,3,3,5],[3,7,3,9],[3,11,3,13],[0,1,1,4],[0,17,0,20],[0,22,1,23],[1,17,1,20],[0,5,0,6],[0,8,0,14],[1,5,1,6],[1,8,1,14]]}
["折込日",null,null,null,null,"広告主",null,null,null,null,null,null,null,null,null,null,"サイズ",null,null,null,null,"取次店"]
[null,null,null,null,null,"チラシ銘柄",null,null,null,null,null,null,null,null,null,null,"部数",{"$f":"A6+A18+A31","v":0}]
[]
["地区",null,null,"中日新聞",null,null,"枚数","朝日新聞",null,null,"枚数","毎日新聞",null,null,"枚数","読売新聞",null,null,"枚数","岐阜新聞",null,null,"枚数","備考"]
["土岐市",null,null,210420101010,"土岐津NMS",4750,null,210420204010,"土岐市G",900,null,null,null,"",null,210420405001,"土岐",650,null,null,null,"",null,"土岐市全域の場合"]
[{"$f":"SUM(G14,K14,O14,S14,W14)","v":0},{"$f":"SUM(F14,J14,N14,R14,V14)","v":12250},null,210420101020,"土岐口NMS",1200,null,210420204030,"妻木G",200,null,null,null,"",null,null,null,"",null,null,null,"",null,"多治見市多治見（両藤舎）"]
[null,null,null,210420101070,"妻木NMS",1100,null,210420204020,"下石MG",350,null,null,null,"",null,null,null,"",null,null,null,"",null,"300枚をプラス"]
[null,null,null,210420101030,"下石NS",1150,null,210420204040,"駄知G",300,null,null,null,"",null,null,null,"",null,null,null,""]
[null,null,null,210420101040,"駄知NM",1650,null,null,null,"",null,null,null,"",null,null,null,"",null,null,null,""]
[null,null,null,null,null,"",null,null,null,"",null,null,null,"",null,null,null,"",null,null,null,""]
[null,null,null,null,null,"",null,null,null,"",null,null,null,"",null,null,null,"",null,null,null,""]
[null,null,null,null,null,"",null,null,null,"",null,null,null,"",null,null,null,"",null,null,null,""]
[null,null,null,null,null,"",null,null,null,"",null,null,null,"",null,null,null,"",null,null,null,""]
[null,null,null,null,{"$f":"CONCATENATE(FIXED(COUNTA(E5:E13),0,0),\"　店\")","v":"5　店"},{"$f":"SUM(F5:F13)","v":9850},{"$f":"SUM(G5:G13)","v":0},null,{"$f":"CONCATENATE(FIXED(COUNTA(I5:I13),0,0),\"　店\")","v":"4　店"},{"$f":"SUM(J5:J13)","v":1750},{"$f":"SUM(K5:K13)","v":0},null,{"$f":"CONCATENATE(FIXED(COUNTA(M5:M13),0,0),\"　店\")","v":"0　店"},{"$f":"SUM(N5:N13)","v":0},{"$f":"SUM(O5:O13)","v":0},null,{"$f":"CONCATENATE(FIXED(COUNTA(Q5:Q13),0,0),\"　店\")","v":"1　店"},{"$f":"SUM(R5:R13)","v":650},{"$f":"SUM(S5:S13)","v":0},null,{"$f":"CONCATENATE(FIXED(COUNTA(U5:U13),0,0),\"　店\")","v":"0　店"},{"$f":"SUM(V5:V13)","v":0},{"$f":"SUM(W5:W13)","v":0},{"$f":"SUM(X5:X13)","v":0}]
[]
["地区",null,null,"中日新聞",null,null,"枚数","朝日新聞",null,null,"枚数","毎日新聞",null,null,"枚数","読売新聞",null,null,"枚数","岐阜新聞",null,null,"枚数","備考"]
["瑞浪市",null,null,210430101010,"瑞浪NAMG",3200,null,null,null,"",null,null,null,"",null,210430405001,"瑞浪",350,null,null,null,""]
[{"$f":"SUM(G27,K27,O27,S27,W27)","v":0},{"$f":"SUM(F27,J27,N27,R27,V27)","v":7900},null,210430101020,"瑞浪西部NAMGS",2600,null,null,null,"",null,null,null,"",null,210430405002,"陶",100,null,null,null,""]
[null,null,null,210430101040,"釜戸NAMGS",800,null,null,null,"",null,null,null,"",null,null,null,"",null,null,null,""]
[null,null,null,210430101030,"陶NAMGS",850,null,null,null,"",null,null,null,"",null,null,null,"",null,null,null,""]
[null,null,null,null,null,"",null,null,null,"",null,null,null,"",null,null,null,"",null,null,null,""]
[null,null,null,null,null,"",null,null,null,"",null,null,null,"",null,null,null,"",null,null,null,""]
[null,null,null,null,null,"",null,null,null,"",null,null,null,"",null,null,null,"",null,null,null,""]
[null,null,null,null,null,"",null,null,null,"",null,null,null,"",null,null,null,"",null,null,null,""]
[null,null,null,null,null,"",null,null,null,"",null,null,null,"",null,null,null,"",null,null,null,""]
[null,null,null,null,null,"",null,null,null,"",null,null,null,"",null,null,null,"",null,null,null,""]
[null,null,null,null,{"$f":"CONCATENATE(FIXED(COUNTA(E17:E26),0,0),\"　店\")","v":"4　店"},{"$f":"SUM(F17:F26)","v":7450},{"$f":"SUM(G17:G26)","v":0},null,{"$f":"CONCATENATE(FIXED(COUNTA(I17:I26),0,0),\"　店\")","v":"0　店"},{"$f":"SUM(J17:J26)","v":0},{"$f":"SUM(K17:K26)","v":0},null,{"$f":"CONCATENATE(FIXED(COUNTA(M17:M26),0,0),\"　店\")","v":"0　店"},{"$f":"SUM(N17:N26)","v":0},{"$f":"SUM(O17:O26)","v":0},null,{"$f":"CONCATENATE(FIXED(COUNTA(Q17:Q26),0,0),\"　店\")","v":"2　店"},{"$f":"SUM(R17:R26)","v":450},{"$f":"SUM(S17:S26)","v":0},null,{"$f":"CONCATENATE(FIXED(COUNTA(U17:U26),0,0),\"　店\")","v":"0　店"},{"$f":"SUM(V17:V26)","v":0},{"$f":"SUM(W17:W26)","v":0},{"$f":"SUM(X17:X26)","v":0}]
[]
["地区",null,null,"中日新聞",null,null,"枚数","朝日新聞",null,null,"枚数","毎日新聞",null,null,"枚数","読売新聞",null,null,"枚数","岐阜新聞",null,null,"枚数","備考"]
["恵那市",null,null,210450101010,"恵那東部NMS",2950,null,210450204010,"恵那G",1250,null,null,null,"",null,210450405001,"恵那",500,null,210450504020,"東野",200]
[{"$f":"SUM(G48,K48,O48,S48,W48)","v":0},{"$f":"SUM(F48,J48,N48,R48,V48)","v":12300},null,210450101020,"恵那（佐伯）NMS",1800,null,null,null,"",null,null,null,"",null,null,null,"",null,210450504050,"中野方A",300]
[null,null,null,210450101030,"武並NAMGS",700,null,null,null,"",null,null,null,"",null,null,null,"",null,null,null,""]
[null,null,null,210450101040,"岩村NAMGS",1100,null,null,null,"",null,null,null,"",null,null,null,"",null,null,null,""]
[null,null,null,210450101050,"恵那上矢作NAMG",500,null,null,null,"",null,null,null,"",null,null,null,"",null,null,null,""]
[null,null,null,210450101060,"遠山NAMG",500,null,null,null,"",null,null,null,"",null,null,null,"",null,null,null,""]
[null,null,null,210450101070,"鶴岡NAMG",550,null,null,null,"",null,null,null,"",null,null,null,"",null,null,null,""]
[null,null,null,210450101080,"明智NAMYGS",1950,null,null,null,"",null,null,null,"",null,null,null,"",null,null,null,""]
[null,null,null,null,null,"",null,null,null,"",null,null,null,"",null,null,null,"",null,null,null,""]
[null,null,null,null,null,"",null,null,null,"",null,null,null,"",null,null,null,"",null,null,null,""]
[null,null,null,null,null,"",null,null,null,"",null,null,null,"",null,null,null,"",null,null,null,""]
[null,null,null,null,null,"",null,null,null,"",null,null,null,"",null,null,null,"",null,null,null,""]
[null,null,null,null,null,"",null,null,null,"",null,null,null,"",null,null,null,"",null,null,null,""]
[null,null,null,null,null,"",null,null,null,"",null,null,null,"",null,null,null,"",null,null,null,""]
[null,null,null,null,null,"",null,null,null,"",null,null,null,"",null,null,null,"",null,null,null,""]
[null,null,null,null,null,"",null,null,null,"",null,null,null,"",null,null,null,"",null,null,null,""]
[null,null,null,null,null,"",null,null,null,"",null,null,null,"",null,null,null,"",null,null,null,""]
[null,null,null,null,null,"",null,null,null,"",null,null,null,"",null,null,null,"",null,null,null,""]
[null,null,null,null,{"$f":"CONCATENATE(FIXED(COUNTA(E30:E47),0,0),\"　店\")","v":"8　店"},{"$f":"SUM(F30:F47)","v":10050},{"$f":"SUM(G30:G47)","v":0},null,{"$f":"CONCATENATE(FIXED(COUNTA(I30:I47),0,0),\"　店\")","v":"1　店"},{"$f":"SUM(J30:J47)","v":1250},{"$f":"SUM(K30:K47)","v":0},null,{"$f":"CONCATENATE(FIXED(COUNTA(M30:M47),0,0),\"　店\")","v":"0　店"},{"$f":"SUM(N30:N47)","v":0},{"$f":"SUM(O30:O47)","v":0},null,{"$f":"CONCATENATE(FIXED(COUNTA(Q30:Q47),0,0),\"　店\")","v":"1　店"},{"$f":"SUM(R30:R47)","v":500},{"$f":"SUM(S30:S47)","v":0},null,{"$f":"CONCATENATE(FIXED(COUNTA(U30:U47),0,0),\"　店\")","v":"2　店"},{"$f":"SUM(V30:V47)","v":500},{"$f":"SUM(W30:W47)","v":0},{"$f":"SUM(X30:X47)","v":0}]
["2025年後期（11月1日以降）",null,null,null,null,null,null,null,null,null,null,null,null,null,null,null,null,null,null,null,null,null,null,"㈱中日総合サービス"]

{"sheet":"中津川市・下呂市","index":17,"n_rows":49,"n_cols":24,"rows_kept":49,"cut":false,"hidden":false,"merged":[[3,15,3,17],[3,19,3,21],[27,0,27,1],[27,3,27,5],[27,7,27,9],[27,11,27,13],[27,15,27,17],[27,19,27,21],[2,9,2,10],[3,0,3,1],[3,3,3,5],[3,7,3,9],[3,11,3,13],[0,1,1,4],[0,17,0,20],[0,22,1,23],[1,17,1,20],[0,5,0,6],[0,8,0,14],[1,5,1,6],[1,8,1,14]]}
["折込日",null,null,null,null,"広告主",null,null,null,null,null,null,null,null,null,null,"サイズ",null,null,null,null,"取次店"]
[null,null,null,null,null,"チラシ銘柄",null,null,null,null,null,null,null,null,null,null,"部数",{"$f":"A6+A30","v":0}]
[]
["地区",null,null,"中日新聞",null,null,"枚数","朝日新聞",null,null,"枚数","毎日新聞",null,null,"枚数","読売新聞",null,null,"枚数","岐阜新聞",null,null,"枚数","備考"]
["中津川市",null,null,210490101010,"中津川東NAMGS",2350,null,null,null,"",null,null,null,"",null,210490405001,"中津川",1200,null,null,null,""]
[{"$f":"SUM(G26,K26,O26,S26,W26)","v":0},{"$f":"SUM(F26,J26,N26,R26,V26)","v":17800},null,210490101020,"中津川西NAMGS",1550,null,null,null,"",null,null,null,"",null,null,null,"",null,null,null,""]
[null,null,null,210490101040,"中津川北NAMGS",1450,null,null,null,"",null,null,null,"",null,null,null,"",null,null,null,""]
[null,null,null,210490101070,"坂本NAMGS",2450,null,null,null,"",null,null,null,"",null,null,null,"",null,null,null,""]
[null,null,"*1",210490101050,"落合NAMGS",1150,null,null,null,"",null,null,null,"",null,null,null,"",null,null,null,"",null,"信濃毎日新聞の扱いあり"]
[null,null,null,210490101080,"苗木NAMGS",1300,null,null,null,"",null,null,null,"",null,null,null,"",null,null,null,"",null,"*１…50枚含む"]
[null,null,null,210490101060,"阿木NAMG",600,null,null,null,"",null,null,null,"",null,null,null,"",null,null,null,"",null,"*2…50枚含む"]
[null,null,null,210490101090,"蛭川NAMＧ",700,null,null,null,"",null,null,null,"",null,null,null,"",null,null,null,""]
[null,null,"*2",210490101100,"美濃坂下NAMGYS",1750,null,null,null,"",null,null,null,"",null,null,null,"",null,null,null,""]
[null,null,null,210490101110,"福岡NAMG",850,null,null,null,"",null,null,null,"",null,null,null,"",null,null,null,""]
[null,null,null,210490101120,"下野NAMG",250,null,null,null,"",null,null,null,"",null,null,null,"",null,null,null,""]
[null,null,null,210490101130,"田瀬NAMG",250,null,null,null,"",null,null,null,"",null,null,null,"",null,null,null,""]
[null,null,null,210490101140,"付知NAMG",1300,null,null,null,"",null,null,null,"",null,null,null,"",null,null,null,""]
[null,null,null,210490101150,"加子母NAMGS",650,null,null,null,"",null,null,null,"",null,null,null,"",null,null,null,""]
[null,null,null,null,null,"",null,null,null,"",null,null,null,"",null,null,null,"",null,null,null,""]
[null,null,null,null,null,"",null,null,null,"",null,null,null,"",null,null,null,"",null,null,null,""]
[null,null,null,null,null,"",null,null,null,"",null,null,null,"",null,null,null,"",null,null,null,""]
[null,null,null,null,null,"",null,null,null,"",null,null,null,"",null,null,null,"",null,null,null,""]
[null,null,null,null,null,"",null,null,null,"",null,null,null,"",null,null,null,"",null,null,null,""]
[null,null,null,null,null,"",null,null,null,"",null,null,null,"",null,null,null,"",null,null,null,""]
[null,null,null,null,null,"",null,null,null,"",null,null,null,"",null,null,null,"",null,null,null,""]
[null,null,null,null,{"$f":"CONCATENATE(FIXED(COUNTA(E5:E25),0,0),\"　店\")","v":"14　店"},{"$f":"SUM(F5:F25)","v":16600},{"$f":"SUM(G5:G25)","v":0},null,{"$f":"CONCATENATE(FIXED(COUNTA(I5:I25),0,0),\"　店\")","v":"0　店"},{"$f":"SUM(J5:J25)","v":0},{"$f":"SUM(K5:K25)","v":0},null,{"$f":"CONCATENATE(FIXED(COUNTA(M5:M25),0,0),\"　店\")","v":"0　店"},{"$f":"SUM(N5:N25)","v":0},{"$f":"SUM(O5:O25)","v":0},null,{"$f":"CONCATENATE(FIXED(COUNTA(Q5:Q25),0,0),\"　店\")","v":"1　店"},{"$f":"SUM(R5:R25)","v":1200},{"$f":"SUM(S5:S25)","v":0},null,{"$f":"CONCATENATE(FIXED(COUNTA(U5:U25),0,0),\"　店\")","v":"0　店"},{"$f":"SUM(V5:V25)","v":0},{"$f":"SUM(W5:W25)","v":0},{"$f":"SUM(X5:X25)","v":0}]
[]
["地区",null,null,"中日新聞",null,null,"枚数","朝日新聞",null,null,"枚数","毎日新聞",null,null,"枚数","読売新聞",null,null,"枚数","岐阜新聞",null,null,"枚数","備考"]
["下呂市",null,null,210530101010,"飛騨金山NAMGY",1400,null,null,null,"",null,null,null,"",null,210530405002,"下呂",500,null,210530504010,null,""]
[{"$f":"SUM(G48,K48,O48,S48,W48)","v":0},{"$f":"SUM(F48,J48,N48,R48,V48)","v":9200},null,210530101020,"東村NAMGY",400,null,null,null,"",null,null,null,"",null,210530405003,"飛騨萩原",100,null,null,null,""]
[null,null,null,210530101030,"焼石NAMGS",550,null,null,null,"",null,null,null,"",null,null,null,"",null,null,null,""]
[null,null,null,210530101040,"下呂NAMGS",1600,null,null,null,"",null,null,null,"",null,null,null,"",null,null,null,""]
[{"$f":"SUM(F41,J41,N41,R41,V41)","v":0},{"$f":"SUM(G41,K41,O41,S41,W41)","v":0},null,210530101050,"飛騨竹原NAMGS",850,null,null,null,"",null,null,null,"",null,null,null,"",null,null,null,""]
[null,null,null,210530101060,"飛騨萩原NAMGS",1900,null,null,null,"",null,null,null,"",null,null,null,"",null,null,null,""]
[null,null,null,210530101070,"飛騨川西NAMG",950,null,null,null,"",null,null,null,"",null,null,null,"",null,null,null,""]
[null,null,null,210530101080,"飛騨小坂NAMGY",950,null,null,null,"",null,null,null,"",null,null,null,"",null,null,null,""]
[null,null,null,null,null,"",null,null,null,"",null,null,null,"",null,null,null,"",null,null,null,""]
[null,null,null,null,null,"",null,null,null,"",null,null,null,"",null,null,null,"",null,null,null,""]
[null,null,null,null,null,"",null,null,null,"",null,null,null,"",null,null,null,"",null,null,null,""]
[null,null,null,null,null,"",null,null,null,"",null,null,null,"",null,null,null,"",null,null,null,""]
[null,null,null,null,null,"",null,null,null,"",null,null,null,"",null,null,null,"",null,null,null,""]
[null,null,null,null,null,"",null,null,null,"",null,null,null,"",null,null,null,"",null,null,null,""]
[null,null,null,null,null,"",null,null,null,"",null,null,null,"",null,null,null,"",null,null,null,""]
[null,null,null,null,null,"",null,null,null,"",null,null,null,"",null,null,null,"",null,null,null,""]
[null,null,null,null,null,"",null,null,null,"",null,null,null,"",null,null,null,"",null,null,null,""]
[null,null,null,null,null,"",null,null,null,"",null,null,null,"",null,null,null,"",null,null,null,""]
[null,null,null,null,null,"",null,null,null,"",null,null,null,"",null,null,null,"",null,null,null,""]
[null,null,null,null,{"$f":"CONCATENATE(FIXED(COUNTA(E29:E47),0,0),\"　店\")","v":"8　店"},{"$f":"SUM(F29:F47)","v":8600},{"$f":"SUM(G29:G47)","v":0},null,{"$f":"CONCATENATE(FIXED(COUNTA(I29:I47),0,0),\"　店\")","v":"0　店"},{"$f":"SUM(J29:J47)","v":0},{"$f":"SUM(K29:K47)","v":0},null,{"$f":"CONCATENATE(FIXED(COUNTA(M29:M47),0,0),\"　店\")","v":"0　店"},{"$f":"SUM(N29:N47)","v":0},{"$f":"SUM(O29:O47)","v":0},null,{"$f":"CONCATENATE(FIXED(COUNTA(Q29:Q47),0,0),\"　店\")","v":"2　店"},{"$f":"SUM(R29:R47)","v":600},{"$f":"SUM(S29:S47)","v":0},null,{"$f":"CONCATENATE(FIXED(COUNTA(U29:U47),0,0),\"　店\")","v":"0　店"},{"$f":"SUM(V29:V47)","v":0},{"$f":"SUM(W29:W47)","v":0},{"$f":"SUM(X29:X47)","v":0}]
["2025年後期（11月1日以降）",null,null,null,null,null,null,null,null,null,null,null,null,null,null,null,null,null,null,null,null,null,null,"㈱中日総合サービス"]

{"sheet":"高山市・飛騨市","index":18,"n_rows":49,"n_cols":24,"rows_kept":49,"cut":false,"hidden":false,"merged":[[3,15,3,17],[3,19,3,21],[27,0,27,1],[27,3,27,5],[27,7,27,9],[27,11,27,13],[27,15,27,17],[27,19,27,21],[2,9,2,10],[3,0,3,1],[3,3,3,5],[3,7,3,9],[3,11,3,13],[0,1,1,4],[0,17,0,20],[0,22,1,23],[1,17,1,20],[0,5,0,6],[0,8,0,14],[1,5,1,6],[1,8,1,14]]}
["折込日",null,null,null,null,"広告主",null,null,null,null,null,null,null,null,null,null,"サイズ",null,null,null,null,"取次店"]
[null,null,null,null,null,"チラシ銘柄",null,null,null,null,null,null,null,null,null,null,"部数",{"$f":"A6+A30","v":0}]
[]
["地区",null,null,"中日新聞",null,null,"枚数","朝日新聞",null,null,"枚数","毎日新聞",null,null,"枚数","読売新聞",null,null,"枚数","岐阜新聞",null,null,"枚数","備考"]
["高山市",null,null,210510101010,"高山NAM",8300,null,210510202010,"高山南部",800,null,null,null,"",null,210510405002,"高山",900,null,210510504010,"高山S",1850,null,"☆月曜日折込不可"]
[{"$f":"SUM(G26,K26,O26,S26,W26)","v":0},{"$f":"SUM(F26,J26,N26,R26,V26)","v":20900},null,210510101100,"高山西部NAM",1400,null,null,null,null,null,null,null,"",null,null,null,"",null,null,null,""]
[null,null,null,210510101110,"高山北部NAM",1450,null,null,null,"",null,null,null,"",null,null,null,"",null,null,null,""]
[null,null,null,210510101020,"高山朝日町NAMG",500,null,null,null,"",null,null,null,"",null,null,null,"",null,null,null,""]
[null,null,null,210510101030,"清見NAMG",650,null,null,null,"",null,null,null,"",null,null,null,"",null,null,null,""]
[null,null,null,210510101040,"久々野NAMG",800,null,null,null,"",null,null,null,"",null,null,null,"",null,null,null,""]
[null,null,null,210510101050,"ひだ一之宮NAMG",600,null,null,null,"",null,null,null,"",null,null,null,"",null,null,null,""]
[null,null,null,210510101060,"丹生川NAMGS",1050,null,null,null,"",null,null,null,"",null,null,null,"",null,null,null,""]
[null,null,"☆",210510101070,"飛騨国府NAMGS",1650,null,null,null,"",null,null,null,"",null,null,null,"",null,null,null,""]
[null,null,null,210510101080,"上宝NAMG",500,null,null,null,"",null,null,null,"",null,null,null,"",null,null,null,""]
[null,null,null,210510101090,"奥飛騨NAMGYS",450,null,null,null,"",null,null,null,"",null,null,null,"",null,null,null,""]
[null,null,null,null,null,"",null,null,null,"",null,null,null,"",null,null,null,"",null,null,null,""]
[null,null,null,null,null,"",null,null,null,"",null,null,null,"",null,null,null,"",null,null,null,""]
[null,null,null,null,null,"",null,null,null,"",null,null,null,"",null,null,null,"",null,null,null,""]
[null,null,null,null,null,"",null,null,null,"",null,null,null,"",null,null,null,"",null,null,null,""]
[null,null,null,null,null,"",null,null,null,"",null,null,null,"",null,null,null,"",null,null,null,""]
[null,null,null,null,null,"",null,null,null,"",null,null,null,"",null,null,null,"",null,null,null,""]
[null,null,null,null,null,"",null,null,null,"",null,null,null,"",null,null,null,"",null,null,null,""]
[null,null,null,null,null,"",null,null,null,"",null,null,null,"",null,null,null,"",null,null,null,""]
[null,null,null,null,null,"",null,null,null,"",null,null,null,"",null,null,null,"",null,null,null,""]
[null,null,null,null,null,"",null,null,null,"",null,null,null,"",null,null,null,"",null,null,null,""]
[null,null,null,null,{"$f":"CONCATENATE(FIXED(COUNTA(E5:E25),0,0),\"　店\")","v":"11　店"},{"$f":"SUM(F5:F25)","v":17350},{"$f":"SUM(G5:G25)","v":0},null,{"$f":"CONCATENATE(FIXED(COUNTA(I5:I25),0,0),\"　店\")","v":"1　店"},{"$f":"SUM(J5:J25)","v":800},{"$f":"SUM(K5:K25)","v":0},null,{"$f":"CONCATENATE(FIXED(COUNTA(M5:M25),0,0),\"　店\")","v":"0　店"},{"$f":"SUM(N5:N25)","v":0},{"$f":"SUM(O5:O25)","v":0},null,{"$f":"CONCATENATE(FIXED(COUNTA(Q5:Q25),0,0),\"　店\")","v":"1　店"},{"$f":"SUM(R5:R25)","v":900},{"$f":"SUM(S5:S25)","v":0},null,{"$f":"CONCATENATE(FIXED(COUNTA(U5:U25),0,0),\"　店\")","v":"1　店"},{"$f":"SUM(V5:V25)","v":1850},{"$f":"SUM(W5:W25)","v":0},{"$f":"SUM(X5:X25)","v":0}]
[]
["地区",null,null,"中日新聞",null,null,"枚数","朝日新聞",null,null,"枚数","毎日新聞",null,null,"枚数","読売新聞",null,null,"枚数","岐阜新聞",null,null,"枚数","備考"]
["飛騨市",null,"*1",210520101010,"神岡NYS",1550,null,null,null,"",null,null,null,"",null,210520405001,"古川",100,null,210520504020,"神岡AM",800,null,"北日本新聞の扱いあり"]
[{"$f":"SUM(G48,K48,O48,S48,W48)","v":0},{"$f":"SUM(F48,J48,N48,R48,V48)","v":6500},"*2",210520101020,"茂住NAMG",100,null,null,null,"",null,null,null,"",null,210520405003,"角川",50,null,null,null,"",null,"*１…50枚含む"]
[null,null,null,210520101060,"飛騨古川NAMGS",3200,null,null,null,"",null,null,null,"",null,null,null,"",null,null,null,"",null,"*2…50枚含む"]
[null,null,null,210520101070,"角川NAMG",350,null,null,null,"",null,null,null,"",null,null,null,"",null,null,null,""]
[{"$f":"SUM(F41,J41,N41,R41,V41)","v":0},{"$f":"SUM(G41,K41,O41,S41,W41)","v":0},null,210520101050,"坂上NAMG",150,null,null,null,"",null,null,null,"",null,null,null,"",null,null,null,""]
[null,null,null,210520101030,"打保G",100,null,null,null,"",null,null,null,"",null,null,null,"",null,null,null,""]
[null,null,null,210520101040,"飛騨杉原G",100,null,null,null,"",null,null,null,"",null,null,null,"",null,null,null,""]
[null,null,null,null,null,"",null,null,null,"",null,null,null,"",null,null,null,"",null,null,null,""]
[null,null,null,null,null,"",null,null,null,"",null,null,null,"",null,null,null,"",null,null,null,""]
[null,null,null,null,null,"",null,null,null,"",null,null,null,"",null,null,null,"",null,null,null,""]
[null,null,null,null,null,"",null,null,null,"",null,null,null,"",null,null,null,"",null,null,null,""]
[null,null,null,null,null,"",null,null,null,"",null,null,null,"",null,null,null,"",null,null,null,""]
[null,null,null,null,null,"",null,null,null,"",null,null,null,"",null,null,null,"",null,null,null,""]
[null,null,null,null,null,"",null,null,null,"",null,null,null,"",null,null,null,"",null,null,null,""]
[null,null,null,null,null,"",null,null,null,"",null,null,null,"",null,null,null,"",null,null,null,""]
[null,null,null,null,null,"",null,null,null,"",null,null,null,"",null,null,null,"",null,null,null,""]
[null,null,null,null,null,"",null,null,null,"",null,null,null,"",null,null,null,"",null,null,null,""]
[null,null,null,null,null,"",null,null,null,"",null,null,null,"",null,null,null,"",null,null,null,""]
[null,null,null,null,null,"",null,null,null,"",null,null,null,"",null,null,null,"",null,null,null,""]
[null,null,null,null,{"$f":"CONCATENATE(FIXED(COUNTA(E29:E47),0,0),\"　店\")","v":"7　店"},{"$f":"SUM(F29:F47)","v":5550},{"$f":"SUM(G29:G47)","v":0},null,{"$f":"CONCATENATE(FIXED(COUNTA(I29:I47),0,0),\"　店\")","v":"0　店"},{"$f":"SUM(J29:J47)","v":0},{"$f":"SUM(K29:K47)","v":0},null,{"$f":"CONCATENATE(FIXED(COUNTA(M29:M47),0,0),\"　店\")","v":"0　店"},{"$f":"SUM(N29:N47)","v":0},{"$f":"SUM(O29:O47)","v":0},null,{"$f":"CONCATENATE(FIXED(COUNTA(Q29:Q47),0,0),\"　店\")","v":"2　店"},{"$f":"SUM(R29:R47)","v":150},{"$f":"SUM(S29:S47)","v":0},null,{"$f":"CONCATENATE(FIXED(COUNTA(U29:U47),0,0),\"　店\")","v":"1　店"},{"$f":"SUM(V29:V47)","v":800},{"$f":"SUM(W29:W47)","v":0},{"$f":"SUM(X29:X47)","v":0}]
["2025年後期（11月1日以降）",null,null,null,null,null,null,null,null,null,null,null,null,null,null,null,null,null,null,null,null,null,null,"㈱中日総合サービス"]